{"text_format":"1","workbook":"xlsx","n_sheets":13,"sheets":["Cover","Syllabus","SO","CAS","Grades","CAF","Report","Samples","N2","N4","N47","N49","About"],"not_rendered":{"charts":0,"images":1,"macros":1,"external_links":0,"defined_names":17,"comments":0,"pivot_tables":0},"unopened":[],"bounds":{"document_bytes":16777216,"sheet_cells":100000,"rows_first":2000,"rows_last":500,"rows_between":2000,"halvings":0,"cell_chars":16384,"cell_head_chars":4096},"cells_cut":0,"cells_raw":0,"read":"whole","date_system":"1900"}

{"sheet":"Cover","index":0,"n_rows":46,"n_cols":47,"rows_kept":46,"cut":false,"hidden":false,"merged":[[1,1,1,7],[2,1,2,7],[3,1,3,7]]}
[null,null,null,null,null,null,null,null,null,null,null,null,null,null,null,null,null,null,null,null,null,null,null,null,null,null,null,null,null,null,null,null,null,null,"1st","2nd","3rd",null,"Fall","Spring","Summer"]
[null,"The University of Jordan",null,null,null,null,null,null,null,null,null,null,"Instructions:",null,null,null,null,null,null,null,null,null,null,null,null,null,null,null,null,null,null,null,null,null,"Required","Elective"]
[null,"School of Engineering",null,null,null,null,null,null,null,null,null,null,"Use Excel 2007, 2010, 2013, 2016 or later",null,null,null,null,null,null,null,null,null,null,null,null,null,null,null,null,null,null,null,null,null,"1st Year","2nd Year","3rd Year","4th Year","5th Year","6th Year","Master Level","Ph.D. Level"]
[null,"Electrical Engineering Department",null,null,null,null,null,null,null,null,null,null,"Enable macros for proper operations and correct printing of various sheets",null,null,null,null,null,null,null,null,null,null,null,null,null,null,null,null,null,null,null,null,null,"(pre-requisite)","(pre- or co-requisite)","(co-requisite)"]
[null,{"$f":"CONCATENATE(Cover!F24, \" Semester – A.Y. \", Cover!F23)","v":"1st Semester – A.Y. 2024/2025"},null,null,null,null,null,null,null,null,null,null,"You can change the size of the rows and columns to fit your needs"]
[]
[null,null,null,null,null,null,null,null,null,null,null,null,null,null,null,null,null,null,null,null,null,null,null,null,null,null,null,null,null,null,null,null,null,null,"Blue","Green","Cyan","Red","Brown"]
[null,null,null,null,null,null,null,null,null,null,null,null,"However, do not change font type and size since this might change how the pages are printed"]
[null,null,null,null,null,null,null,null,null,null,null,null,"Remember to fill ALL the required information to get proper results"]
[null,null,null,null,null,null,null,null,null,null,null,null,"Do NOT delete or add rows or columns in any of the sheets, as this will cause wrong calculations"]
[null,null,null,null,null,null,null,null,null,null,null,null,"You can contact the developer for comments and issues (see About page)"]
[null,null,null,null,"Course Folio"]
[null,null,null,null,"for the purpose of ABET accreditation",null,null,null,null,null,null,null,"Print the following:"]
[]
[]
[null,null,null,null,null,null,null,null,null,null,null,null,null,null,null,null,null,null,null,null,null,null,null,null,null,null,null,null,null,null,null,null,null,null,"School of Engineering",null,null,null,"School of Science",null,null,null,"King Abdullah II School of Information Technology",null,null,null,"School of Agriculture"]
[null,null,null,"Course Number:",null,"0953421",null,null,null,null,null,null,"Course Name in Arabic:",null,null,null,null,null,null,null,null,null,null,null,null,null,null,null,null,"School of Engineering",null,null,null,null,"Civil Engineering Department",null,null,null,"Biological Sciences Department",null,null,null,"Computer Science",null,null,null,"Horticulture and Crop Science"]
[null,null,null,"Course Name:",null,"Communications (I)",null,null,null,null,null,null,null,null,"اتصالات (1)",null,null,null,null,null,null,null,null,null,null,null,null,null,null,"School of Science",null,null,null,null,"Architecture Engineering Department",null,null,null,"Geology Department",null,null,null,"Computer Information Systems",null,null,null,"Land Water and Environment"]
[null,null,null,"Credit Hours:",null,"3",null,null,null,null,null,null,"Weekly Contact Hours",null,null,null,null,null,null,null,null,null,null,null,null,null,null,null,null,"King Abdullah II School of Information Technology",null,null,null,null,"Electrical Engineering Department",null,null,null,"Chemistry Department",null,null,null,"Business Information Technology",null,null,null,"Nutrition and Food Technology"]
[null,null,null,"Course Type:",null,"Required",null,null,null,null,null,null,null,"Theory:",3,null,null,null,null,null,null,null,null,null,null,null,null,null,null,"School of Agriculture",null,null,null,null,"Mechanical Engineering Department",null,null,null,"Physics Department",null,null,null,null,null,null,null,"Animal Production"]
[null,null,null,"Course Level:",null,"4th Year",null,null,null,null,null,null,null,"Practical:",0,null,null,null,null,null,null,null,null,null,null,null,null,null,null,null,null,null,null,null,"Chemical Engineering Department",null,null,null,"Mathematics Department",null,null,null,null,null,null,null,"Agricultural Economics and Agribusiness"]
[null,null,null,null,null,null,null,null,null,null,null,null,"Advisory plan semester:",null,"1st",null,null,null,null,null,null,null,null,null,null,null,null,null,null,null,null,null,null,null,"Industrial Engineering Department",null,null,null,null,null,null,null,null,null,null,null,"Plant Protection"]
[null,null,null,"Academic Year:",null,"2024/2025",null,null,null,null,null,null,null,null,null,null,null,null,null,null,null,null,null,null,null,null,null,null,null,null,null,null,null,null,"Computer Engineering"]
[null,null,null,"Semester:",null,"1st",null,null,null,null,null,null,"Plan Approved On:",null,"Sep 2022",164,null,null,null,null,null,null,null,null,null,null,null,null,null,null,null,null,null,null,"Mechatronics Engineering Department"]
[null,null,null,"Total Students:",null,57,null,null,null,null,null,null,null,null,null,"Cr. Hours"]
[null,null,null,"Instructor:",null,"Prof. Mohammed Hawa",null,null,null,null,null,null,"First instructor name is the course coordinator in case of multiple instructors"]
[null,null,null,"Contact:",null,"E306",22857,"hawa@ju.edu.jo"]
[null,null,null,null,null,"(Office,","Phone,","Email)"]
[]
[null,null,"CHECKLIST:"]
[null,null,"Please indicate below the supporting material you included in the"]
[null,null,"course portfolio whether electronically or in the paper-based file:"]
[null,null,null,null,null,null,null,null,"Submit","Audit"]
[null,null,"1. Course Syllabus (latest revision)"]
[null,null,"2. Course Assessment by Students (CAS)"]
[null,null,"3. Course Assessment by Faculty (CAF)"]
[null,null,"4. Course Report"]
[null,null,"5. Sample Exams/Quizzes/Assignments/Projects/Reports"]
[null,null,"    (Minimum, Average, and Maximum)"]
[]
[]
[]
[null,null,"Submitter name:",null,null,null,null,"Date of submission:"]
[]
[]
[null,null,"Auditor name:",null,null,null,null,"Date of audit:"]

{"sheet":"Syllabus","index":1,"n_rows":79,"n_cols":37,"rows_kept":79,"cut":false,"hidden":false,"merged":[[13,13,13,19],[15,5,15,8],[71,3,71,11],[8,3,8,11],[16,3,16,11],[12,3,12,11],[22,4,22,11],[23,4,23,11],[36,10,36,11],[37,10,37,11],[9,3,9,11],[10,3,10,11],[11,3,11,11],[55,2,55,10],[56,2,56,10],[57,2,57,10],[39,10,39,11],[45,10,45,11],[46,10,46,11],[47,10,47,11],[40,10,40,11],[41,10,41,11],[42,10,42,11],[43,10,43,11],[44,10,44,11],[62,2,62,10],[63,2,63,10],[69,2,69,10],[64,2,64,10],[65,2,65,10],[66,2,66,10],[67,2,67,10],[68,2,68,10],[39,2,39,9],[40,2,40,9],[41,2,41,9],[35,2,35,9],[13,1,13,2],[33,2,33,9],[34,2,34,9],[36,2,36,9],[13,3,13,11],[17,3,17,11],[18,3,18,11],[24,4,24,11],[25,4,25,11],[26,4,26,11],[19,4,19,11],[20,4,20,11],[42,2,42,9],[50,2,50,10],[51,2,51,10],[52,2,52,10],[53,2,53,10],[45,2,45,9],[46,2,46,9],[47,2,47,9],[43,2,43,9],[58,2,58,10],[59,2,59,10],[60,2,60,10],[61,2,61,10],[44,2,44,9],[54,2,54,10],[14,9,14,11],[15,9,15,11],[14,5,14,8],[38,10,38,11],[38,2,38,9],[28,3,28,4],[28,5,28,11],[29,3,29,11],[37,2,37,9],[21,4,21,11],[33,10,33,11],[34,10,34,11],[35,10,35,11]]}
[]
[null,{"$f":"Cover!B2","v":"The University of Jordan"}]
[null,{"$f":"Cover!B3","v":"School of Engineering"}]
[null,{"$f":"Cover!B4","v":"Electrical Engineering Department"}]
[null,{"$f":"CONCATENATE(Cover!F24, \" Semester – A.Y. \", Cover!F23)","v":"1st Semester – A.Y. 2024/2025"}]
[]
[]
[]
[null,"Course:",null,{"$f":"CONCATENATE(Cover!F18, \" – \", Cover!F17, \"    (\", Cover!F19, \" Cr. – \", Cover!F20, \" Course)\")","v":"Communications (I) – 0953421    (3 Cr. – Required Course)"}]
[null,"Instructor:",null,{"$f":"Cover!F26","v":"Prof. Mohammed Hawa"}]
[null,null,null,{"$f":"CONCATENATE(\"Office: \",Cover!$F$27,\", Telephone: 06/5355000 ext \",Cover!$G$27,\", Email: \",Cover!$H$27)","v":"Office: E306, Telephone: 06/5355000 ext 22857, Email: hawa@ju.edu.jo"}]
[null,null,null,"Office Hours: Will be posted soon"]
[null,"Platform:",null,"http://www.hawa.work/421 and Moodle (https://elearning.ju.edu.jo/)",null,null,null,null,null,null,null,null,null,"Catalog description in Arabic:"]
[null,"Catalog description:",null,"Classification of communication systems. Channel impairments: attenuation, distortion, noise, etc. Continuous-wave (CW) modulation. Double Sideband Suppressed Carrier (DSB-SC), Amplitude Modulation (AM) and Quadrature Amplitude Modulation (QAM). Bandwidth. Mixers. Coherent detection and effects of frequency/phase errors. Frequency Modulation (FM) and Phase Modulation (PM). AM and FM transmitters, receivers and radio broadcasting. Noise sources and noise representation in CW modulation. Signal-to-Noise Ratio (SNR) calculations. Frequency Division Multiplexing (FDM) and Time Division Multiplexing (TDM). Introduction to baseband transmission: sampling, quantization, line coding, and pulse shaping. Introduction to digital modulation techniques: ASK, FSK, PSK and QPSK. Introduction to performance of digital modulation schemes in the presence of noise.",null,null,null,null,null,null,null,null,null,"تصنيف أنظمة الاتصال. عيوب القناة: التوهين والتشويه والضجيج، إلخ. التعديل المستمر للموجة. التعديل ذو النطاق الجانبي المزدوج مع موجة حاملة مكبوتة، التعديل السعوي، التعديل السعوي المتعامد. عرض النطاق. أجهزة المزج. دوائر فك التعديل المتزامنة وآثار أخطاء التردد / الطور عليها. التعديل الترددي والتعديل الطوري. أجهزة إرسال واستقبال آي أم وأف أم والبث الإذاعي. مصادر الضجيج وتمثيل الضجيج في أنظمة التعديل المستمر للموجة. حساب نسبة الإشارة إلى الضجيج. الوصول المتعدد بتقسيم التردد والوصول المتعدد بتقسيم الوقت. مقدمة إلى عملية الارسال ضمن النطاق الأساسي: أخذ عينات من الاشارة، التقسيم الكمي، الترميز الخطي، وتشكيل النبضة. مقدمة في تقنيات التعديل الرقمي: الإزاحة السعوية والإزاحة الترددية والإزاحة الطورية وأيضاً الإزاحة الطورية المتعامدة. مقدمة لأداء تقنيات التعديل الرقمي في وجود الضجيج. "]
[null,"Prerequisites",null,"EE","0963321","Probability and Statistics",null,null,null,"(pre- or co-requisite)"]
[null,"by course:"]
[null,"Prerequisites",null,"Students are assumed to have a background in the following topics:"]
[null,"by topic:",null,"• Continuous-time signal analysis, Fourier series and Fourier transform.\n• Filters and the difference between the LPF, HPF and BPF.\n• Using MATLAB and other circuit simulation software."]
[null,"Textbook:",null,"Modern Digital and Analog Communications Systems by B. P. Lathi and Zhi Ding, Oxford University Press, 5th Edition, 2018."]
[null,"References:",null,"1.","Fundamentals of Communication Systems by John G. Proakis and Masoud Salehi, Prentice Hall, 2nd Edition, 2013."]
[null,null,null,"2.","Analog and Digital Communications (Schaum's Outlines) by Hwei P. Hsu, McGraw-Hill, 2nd Edition, 2002."]
[null,null,null,"3.","Digital and Analog Communication Systems by Leon W. Couch, Prentice Hall, 8th Edition, 2012."]
[null,null,null,"4.","An Introduction to Digital and Analog Communications by Simon Haykin and Michael Moher, Wiley, 2nd Edition, 2006."]
[null,null,null,"5.","Analog and Digital Communication Systems by Martin S. Roden, Discovery Press, 5th Edition, 2003."]
[null,null,null,"6.","Digital Communication Systems by Simon Haykin, Wiley, 1st Edition, 2013."]
[null,null,null,"7.","Contemporary Communication Systems using MATLAB by John G. Proakis, Masoud Salehi and Gerhard Bauch, Thomson-Engineering, 3rd Edition, 2012."]
[null,null,null,"8."]
[]
[null,"Schedule:",null,"On Campus",null,"[16 Weeks, 42 lectures (50 minutes each) including exams]",null,null,null,null,null,null,null,null,null,null,null,null,null,null,null,null,null,null,null,null,null,null,null,null,null,null,null,null,"On Campus","Blended","Online"]
[null,"Course goals:",null,"The overall objective is to introduce the student to the basics of communications theory. This course emphasizes:\n• Analog modulation and demodulation techniques.\n• Performance evaluation of communication systems in the presence of noise.\n• Modern trends in communication systems."]
[]
[null,"Course learning outcomes (CLO) and relation to ABET student outcomes (SO):"]
[null,"Upon successful completion of this course, a student will:",null,null,null,null,null,null,null,null,null,"[SO]"]
[null,"1.","Understand the theory behind amplitude, frequency and phase modulation techniques.",null,null,null,null,null,null,null,"[1]"]
[null,"2.","Become familiar with the performance measures used in conjunction with communication systems including required channel bandwidth and signal-to-noise ratio (SNR).",null,null,null,null,null,null,null,"[1]"]
[null,"3.","Be able to identify the different parts of AM and FM transmitters and receivers.",null,null,null,null,null,null,null,"[1]"]
[null,"4.","Learn how FDM and TDM multiplexing systems work.",null,null,null,null,null,null,null,"[1]"]
[null,"5.","Become familiar with digital modulation techniques: ASK, FSK, PSK & QPSK.",null,null,null,null,null,null,null,"[1]"]
[null,"6.","Be able to identify design choices in contemporary communication systems, such as: satellite systems, landline and cellular telephony, wireless networks, television and radio broadcasting systems.",null,null,null,null,null,null,null,"[1]"]
[null,"7."]
[null,"8."]
[null,"9."]
[null,"10."]
[null,"11."]
[null,"12."]
[null,"13."]
[null,"14."]
[null,"15."]
[]
[null,"Course topics:",null,null,null,null,null,null,null,null,null,"Hrs"]
[null,"1.","Channel impairments: attenuation, distortion and noise. Noise sources/characteristics.",null,null,null,null,null,null,null,null,4]
[null,"2.","Classification of communication systems (analog and digital, baseband and carrier). Communication system block diagram.",null,null,null,null,null,null,null,null,2]
[null,"3.","(Handout) Signal Analysis Review: time and frequency domains, Fourier series and transform, spectral densities, RMS, average power, dBm levels, filters.",null,null,null,null,null,null,null,null,3]
[null,"4.","Double Sideband Suppressed Carrier (DSB-SC) Modulation/Demodulation. Mixers, coherent detection and frequence/phase errors. Circuits: Gilbert Cell, Switching modulator/demodulator.",null,null,null,null,null,null,null,null,5]
[null,"5.","(Handout) Introduction to baseband digital transmission: sampling of signals, quantization, line coding and pulse shaping.",null,null,null,null,null,null,null,null,3]
[null,"6.","Quadrature Amplitude Modulation (QAM) and Vestigial Sideband (VSB). Analog TV broadcasting standards.",null,null,null,null,null,null,null,null,3]
[null,"7.","Frequency conversion (heterodyning).",null,null,null,null,null,null,null,null,1]
[null,"8.","AM Modulation/Demodulation. AM modulation index and power efficiency. Circuits: Modulators, demodulators, envelope detector, synchronous detector.",null,null,null,null,null,null,null,null,4]
[null,"9.","Frequency division multiplexing (FDM) and FDMA. The Superheterodyne receiver. \nAM radio broadcasting.\n",null,null,null,null,null,null,null,null,2]
[null,"10.","Noise representation (AWGN noise). Performance of analog communication systems in the presence of noise, Signal-to-Noise Ratio (SNR) for DSB-SC and AM.",null,null,null,null,null,null,null,null,4]
[null,"11.","Frequency Modulation (FM) and Phase Modulation (PM):  time-domain representation, bandwdith estimation (Carson’s rule), Narrowband and Wideband FM, FM and PM advantages/disadvantages and applications. SNR of FM signals. FM radio broadcasting.",null,null,null,null,null,null,null,null,5]
[null,"12.","Time division multiplexing (TDM) and TDMA. Telephony and Pulse Cod Modulation (PCM).",null,null,null,null,null,null,null,null,2]
[null,"13.","(Handout) Introduction to Digital Modulation techniques: Amplitude Shift Keying (ASK), Frequency Shift Keying (FSK), Phase Shift Keying (PSK), Quadrature Phase Shift Keying (QPSK) and Quadrature Amplitude Modulation (QAM). Performance Analysis.",null,null,null,null,null,null,null,null,2]
[null,"14."]
[null,"15."]
[null,"16."]
[null,"17."]
[null,"18."]
[null,"19."]
[null,"20."]
[]
[null,"Ground rules:",null,"Attendance is required and highly encouraged. To that end, attendance will be taken every lecture. Eating and drinking are not allowed during class, and cell phones must be set to silent mode. All exams (including the final exam) should be considered cumulative. Exams are closed book. No scratch paper is allowed. You will be held responsible for all reading material assigned, even if it is not explicitly covered in lecture notes. Academic integrity must be maintained."]
[]
[null,"Assessment &",null,"First Exam",null,null,0.2,null,"Assignments",null,0]
[null,"grading policy:",null,"Midterm Exam",null,null,0.3,null,"Projects",null,0]
[null,null,null,"Final Exam",null,null,0.5,null,"Lab Reports",null,0]
[null,null,null,"Quizzes",null,null,0,null,"Presentation",null,0]
[null,null,null,null,null,null,null,null,"Total",null,{"$f":"SUM(G74:G77,K74:K77)","v":1}]
[null,"Last Revised:",null,"Feb 2024"]

{"sheet":"SO","index":2,"n_rows":65,"n_cols":52,"rows_kept":65,"cut":false,"hidden":false,"merged":[]}
["Student outcomes (SO)",null,"Total:",{"$f":"60-COUNTBLANK(SO!$B$7:$B$65)-1","v":7},null,null,"National Level"]
["Student outcomes adopted by department:",null,"ABET (1 to 7)",null,null,null,{"$f":" IF($C$2=$AA$2, AF6,IF($C$2=$AB$2, AN6, IF($C$2=$AC$2, AV6, \"\")))","v":7},null,null,null,null,null,null,null,null,null,null,null,null,null,null,null,"Student Outcomes choices:",null,null,null,"ABET (1 to 7)","Comm (M1 to M5)","Power (P1 to P5)"]
[null,null,null,null,null,null,null,null,null,null,null,null,null,null,null,null,null,null,null,null,null,null,"Mapping of (CLO) to (SO) choices:",null,null,null,"Yes/No","High / Med / Low"]
["Mapping from Course Learning Outcomes (CLO) to Student Outcomes (SO) is performed (and shown) in the Syllabus sheet.",null,null,null,null,null,"Mapping to (up to 5)"]
["Please note that only Hi mappings are needed, as Med and Lo mappings are typically not measured in this course portfolio).",null,null,null,null,null,"National Outcomes (SO)",null,null,null,null,null,null,null,null,null,null,null,null,null,null,null,null,null,null,null,null,null,null,null,null,"National",null,null,null,null,null,null,null,"National",null,null,null,null,null,null,null,"National"]
[null,null,null,null,null,null,null,null,null,null,null,null,null,null,null,null,null,null,null,null,null,null,null,null,null,null,null,null,null,null,"ABET (1 to 7)",7,null,null,null,null,null,null,"Power (P1 to P5)",9,null,null,null,null,null,null,"Comm (M1 to M5)",9]
[null,{"$f":" IF($C$2=$AA$2, IF(AD7=\"\",\"\",AD7),IF($C$2=$AB$2, IF(AL7=\"\",\"\",AL7), IF($C$2=$AC$2, IF(AT7=\"\",\"\",AT7), \"\")))","v":1},{"$f":" IF($C$2=$AA$2, IF(AE7=\"\",\"\",AE7),IF($C$2=$AB$2, IF(AM7=\"\",\"\",AM7), IF($C$2=$AC$2, IF(AU7=\"\",\"\",AU7), \"\")))","v":"An ability to identify, formulate, and solve complex engineering problems by applying principles of engineering, science, and mathematics."},null,null,null,{"$f":" IF($C$2=$AA$2, IF(AF7=\"\",\"\",AF7),IF($C$2=$AB$2, IF(AN7=\"\",\"\",AN7), IF($C$2=$AC$2, IF(AV7=\"\",\"\",AV7), \"\")))","v":"K1"},{"$f":" IF($C$2=$AA$2, IF(AG7=\"\",\"\",AG7),IF($C$2=$AB$2, IF(AO7=\"\",\"\",AO7), IF($C$2=$AC$2, IF(AW7=\"\",\"\",AW7), \"\")))","v":""},"","","",null,null,null,null,null,null,null,null,null,null,null,null,null,null,null,null,null,null,1,"An ability to identify, formulate, and solve complex engineering problems by applying principles of engineering, science, and mathematics.","K1",null,null,null,null,null,"M1","Demonstrate a sound, in-depth and up-to-date technical knowledge in the fields of analog and digital communication systems, especially intelligent communication systems, in addition to electromagnetic theory, communication networks, information theory, and signal processing","K1",null,null,null,null,null,"P1","Demonstrate a sound, in-depth and up-to-date technical knowledge in the fields of advanced engineering mathematics, electrical machines, power system operation, protection and economics, power electronics and renewable energy","K1"]
[null,2,"An ability to apply engineering design to produce solutions that meet specified needs with consideration of public health, safety, and welfare, as well as global, cultural, social, environmental, and economic factors.",null,null,null,{"$f":" IF($C$2=$AA$2, IF(AF8=\"\",\"\",AF8),IF($C$2=$AB$2, IF(AN8=\"\",\"\",AN8), IF($C$2=$AC$2, IF(AV8=\"\",\"\",AV8), \"\")))","v":"S1"},"S2","","","",null,null,null,null,null,null,null,null,null,null,null,null,null,null,null,null,null,null,2,"An ability to apply engineering design to produce solutions that meet specified needs with consideration of public health, safety, and welfare, as well as global, cultural, social, environmental, and economic factors.","S1","S2",null,null,null,null,"M2","Identify, analyze and solve engineering problems in the field of communication systems by applying acquired knowledge and expertise","S1","S3","C1",null,null,null,"P2","Identify, analyze and solve engineering problems in the field of power systems by applying acquired knowledge and expertise","S1","S3","C1"]
[null,3,"An ability to communicate effectively with a range of audiences.",null,null,null,"C4","","","","",null,null,null,null,null,null,null,null,null,null,null,null,null,null,null,null,null,null,3,"An ability to communicate effectively with a range of audiences.","C4",null,null,null,null,null,"M3","Evaluate the effects of a proposed engineering solution, and its ethical considerations, sustainability, and real-world performance","C4","C6",null,null,null,null,"P3","Evaluate the effects of a proposed engineering solution, and its ethical considerations, sustainability, and real-world performance","C4","C6"]
[null,4,"An ability to recognize ethical and professional responsibilities in engineering situations and make informed judgments, which must consider the impact of engineering solutions in global, economic, environmental, and societal contexts.",null,null,null,"C2","","","","",null,null,null,null,null,null,null,null,null,null,null,null,null,null,null,null,null,null,4,"An ability to recognize ethical and professional responsibilities in engineering situations and make informed judgments, which must consider the impact of engineering solutions in global, economic, environmental, and societal contexts.","C2",null,null,null,null,null,"M4","Exhibit research competencies to test scientific hypothesis, and demonstrate commitment to continued professional development, self-learning, critical thinking and utilizing modern technology to enhance learning and research","K2","K3","S2","C2","C3",null,"P4","Exhibit research competencies to test scientific hypothesis, and demonstrate commitment to continued professional development, self-learning, critical thinking and utilizing modern technology to enhance learning and research","K2","K3","S2","C2","C3"]
[null,5,"An ability to function effectively on a team whose members together provide leadership, create a collaborative and inclusive environment, establish goals, plan tasks, and meet objectives.",null,null,null,"C1","C3","","","",null,null,null,null,null,null,null,null,null,null,null,null,null,null,null,null,null,null,5,"An ability to function effectively on a team whose members together provide leadership, create a collaborative and inclusive environment, establish goals, plan tasks, and meet objectives.","C1","C3",null,null,null,null,"M5","Demonstrate the ability to communicate technical information effectively and professionally both via oral presentation and by writing original research to a professional standard","C5",null,null,null,null,null,"P5","Demonstrate the ability to communicate technical information effectively and professionally both via oral presentation and by writing original research to a professional standard","C5"]
[null,6,"An ability to develop and conduct appropriate experimentation, analyze and interpret data, and use engineering judgment to draw conclusions.",null,null,null,"S3","","","","",null,null,null,null,null,null,null,null,null,null,null,null,null,null,null,null,null,null,6,"An ability to develop and conduct appropriate experimentation, analyze and interpret data, and use engineering judgment to draw conclusions.","S3"]
[null,7,"An ability to acquire and apply new knowledge as needed, using appropriate learning strategies.",null,null,null,"C4","","","","",null,null,null,null,null,null,null,null,null,null,null,null,null,null,null,null,null,null,7,"An ability to acquire and apply new knowledge as needed, using appropriate learning strategies.","C4"]
[null,"","",null,null,null,"","","","",""]
[null,"","",null,null,null,"","","","",""]
[null,"","",null,null,null,"","","","",""]
[null,"","",null,null,null,"","","","",""]
[null,"","",null,null,null,"","","","",""]
[null,"","",null,null,null,"","","","",""]
[null,"","",null,null,null,"","","","",""]
[null,"","",null,null,null,"","","","",""]
[null,"","",null,null,null,"","","","",""]
[null,"","",null,null,null,"",{"$f":" IF($C$2=$AA$2, IF(AG23=\"\",\"\",AG23),IF($C$2=$AB$2, IF(AO23=\"\",\"\",AO23), IF($C$2=$AC$2, IF(AW23=\"\",\"\",AW23), \"\")))","v":""},{"$f":" IF($C$2=$AA$2, IF(AH23=\"\",\"\",AH23),IF($C$2=$AB$2, IF(AP23=\"\",\"\",AP23), IF($C$2=$AC$2, IF(AX23=\"\",\"\",AX23), \"\")))","v":""},{"$f":" IF($C$2=$AA$2, IF(AI23=\"\",\"\",AI23),IF($C$2=$AB$2, IF(AQ23=\"\",\"\",AQ23), IF($C$2=$AC$2, IF(AY23=\"\",\"\",AY23), \"\")))","v":""},{"$f":" IF($C$2=$AA$2, IF(AJ23=\"\",\"\",AJ23),IF($C$2=$AB$2, IF(AR23=\"\",\"\",AR23), IF($C$2=$AC$2, IF(AZ23=\"\",\"\",AZ23), \"\")))","v":""}]
[null,"","",null,null,null,"","","","",""]
[null,"","",null,null,null,"","","","",""]
[null,"","",null,null,null,"","","","",""]
[null,"","",null,null,null,"","","","",""]
[null,"","",null,null,null,"","","","",""]
[null,"","",null,null,null,"","","","",""]
[null,"","",null,null,null,"","","","",""]
[null,"","",null,null,null,"","","","",""]
[null,"","",null,null,null,"","","","",""]
[null,"","",null,null,null,"","","","",""]
[null,"","",null,null,null,"","","","",""]
[null,"","",null,null,null,"","","","",""]
[null,"","",null,null,null,"","","","",""]
[null,"","",null,null,null,"","","","",""]
[null,"","",null,null,null,"","","","",""]
[null,{"$f":" IF($C$2=$AA$2, IF(AD39=\"\",\"\",AD39),IF($C$2=$AB$2, IF(AL39=\"\",\"\",AL39), IF($C$2=$AC$2, IF(AT39=\"\",\"\",AT39), \"\")))","v":""},{"$f":" IF($C$2=$AA$2, IF(AE39=\"\",\"\",AE39),IF($C$2=$AB$2, IF(AM39=\"\",\"\",AM39), IF($C$2=$AC$2, IF(AU39=\"\",\"\",AU39), \"\")))","v":""},null,null,null,"","","","",""]
[null,"","",null,null,null,"","","","",""]
[null,"","",null,null,null,"","","","",""]
[null,"","",null,null,null,"","","","",""]
[null,"","",null,null,null,"","","","",""]
[null,"","",null,null,null,"","","","",""]
[null,"","",null,null,null,"","","","",""]
[null,"","",null,null,null,"","","","",""]
[null,"","",null,null,null,"","","","",""]
[null,"","",null,null,null,"","","","",""]
[null,"","",null,null,null,"","","","",""]
[null,"","",null,null,null,"","","","",""]
[null,"","",null,null,null,"","","","",""]
[null,"","",null,null,null,"","","","",""]
[null,"","",null,null,null,"","","","",""]
[null,"","",null,null,null,"","","","",""]
[null,"","",null,null,null,"","","","",""]
[null,"","",null,null,null,"","","","",""]
[null,"","",null,null,null,"","","","",""]
[null,"","",null,null,null,"","","","",""]
[null,"","",null,null,null,"","","","",""]
[null,"","",null,null,null,"","","","",""]
[null,"","",null,null,null,"","","","",""]
[null,"","",null,null,null,"","","","",""]
[null,"","",null,null,null,"","","","",""]
[null,"","",null,null,null,"","","","",""]
[null,"","",null,null,null,"","","","",""]

{"sheet":"CAS","index":3,"n_rows":88,"n_cols":16,"rows_kept":88,"cut":false,"hidden":false,"merged":[[20,2,20,7],[15,2,15,7],[16,2,16,7],[17,2,17,7],[18,2,18,7],[19,2,19,7],[27,2,27,7],[28,2,28,7],[29,2,29,7],[21,2,21,7],[22,2,22,7],[23,2,23,7],[24,2,24,7],[25,2,25,7],[26,2,26,7]]}
[]
[null,"Please copy the student evaluation results from the database for the CAS site at:"]
[null,"https://eservices.ju.edu.jo/abet/"]
[]
[null,"CAS: Course assessment by students"]
[null,"Course learning outcomes indirectly assesed by students"]
[]
[null,"Course Number:",null,{"$f":"Cover!F17","v":"0953421"},null,null,null,"Academic Year:",{"$f":"Cover!$F$23","v":"2024/2025"}]
[null,"Course Name:",null,{"$f":"Cover!$F$18","v":"Communications (I)"},null,null,null,"Semester:",{"$f":"Cover!$F$24","v":"1st"}]
[null,"Credit Hours:",null,{"$f":"Cover!F19","v":"3"}]
[null,"Course Type:",null,{"$f":"Cover!$F$20","v":"Required"},null,null,null,"Instructor:",{"$f":"Cover!$F$26","v":"Prof. Mohammed Hawa"}]
[]
[null,"Total students in class:",null,null,{"$f":"Cover!$F$25","v":57}]
[null,null,null,null,null,null,null,null,null,1,2,3,4,5,"[out of 5]","Evaluating"]
[null,"No.","Course learning outcome (CLO)",null,null,null,null,null,"[SO]","Poor","Fair","Good","V. Good","Excellent","Average*","students"]
[null,"1.",{"$f":"IF(Syllabus!C34=\"\",\"\",Syllabus!C34)","v":"Understand the theory behind amplitude, frequency and phase modulation techniques."},null,null,null,null,null,{"$f":"IF(Syllabus!C34=\"\",\"\",Syllabus!K34)","v":"[1]"},4,11,18,12,45,{"$f":"IF(C16=\"\",\"\",ROUND((J16*$J$14+K16*$K$14+L16*$L$14+M16*$M$14+N16*$N$14)/SUM(J16:N16),2))","v":3.92},{"$f":"IF(C16=\"\",\"\",SUM(J16:N16))","v":90}]
[null,"2.",{"$f":"IF(Syllabus!C35=\"\",\"\",Syllabus!C35)","v":"Become familiar with the performance measures used in conjunction with communication systems including required channel bandwidth and signal-to-noise ratio (SNR)."},null,null,null,null,null,{"$f":"IF(Syllabus!C35=\"\",\"\",Syllabus!K35)","v":"[1]"},4,11,19,11,45,3.91,{"$f":"IF(C17=\"\",\"\",SUM(J17:N17))","v":90}]
[null,"3.",{"$f":"IF(Syllabus!C36=\"\",\"\",Syllabus!C36)","v":"Be able to identify the different parts of AM and FM transmitters and receivers."},null,null,null,null,null,{"$f":"IF(Syllabus!C36=\"\",\"\",Syllabus!K36)","v":"[1]"},4,11,19,12,44,3.9,90]
[null,"4.",{"$f":"IF(Syllabus!C37=\"\",\"\",Syllabus!C37)","v":"Learn how FDM and TDM multiplexing systems work."},null,null,null,null,null,{"$f":"IF(Syllabus!C37=\"\",\"\",Syllabus!K37)","v":"[1]"},5,10,18,12,45,3.91,90]
[null,"5.",{"$f":"IF(Syllabus!C38=\"\",\"\",Syllabus!C38)","v":"Become familiar with digital modulation techniques: ASK, FSK, PSK & QPSK."},null,null,null,null,null,{"$f":"IF(Syllabus!C38=\"\",\"\",Syllabus!K38)","v":"[1]"},4,10,21,13,42,3.88,90]
[null,"6.",{"$f":"IF(Syllabus!C39=\"\",\"\",Syllabus!C39)","v":"Be able to identify design choices in contemporary communication systems, such as: satellite systems, landline and cellular telephony, wireless networks, television and radio broadcasting systems."},null,null,null,null,null,{"$f":"IF(Syllabus!C39=\"\",\"\",Syllabus!K39)","v":"[1]"},5,13,19,10,43,3.81,90]
[null,"7.",{"$f":"IF(Syllabus!C40=\"\",\"\",Syllabus!C40)","v":""},null,null,null,null,null,{"$f":"IF(Syllabus!C40=\"\",\"\",Syllabus!K40)","v":""},null,null,null,null,null,"",""]
[null,"8.",{"$f":"IF(Syllabus!C41=\"\",\"\",Syllabus!C41)","v":""},null,null,null,null,null,{"$f":"IF(Syllabus!C41=\"\",\"\",Syllabus!K41)","v":""},null,null,null,null,null,"",""]
[null,"9.",{"$f":"IF(Syllabus!C42=\"\",\"\",Syllabus!C42)","v":""},null,null,null,null,null,{"$f":"IF(Syllabus!C42=\"\",\"\",Syllabus!K42)","v":""},null,null,null,null,null,"",""]
[null,"10.",{"$f":"IF(Syllabus!C43=\"\",\"\",Syllabus!C43)","v":""},null,null,null,null,null,{"$f":"IF(Syllabus!C43=\"\",\"\",Syllabus!K43)","v":""},null,null,null,null,null,"",""]
[null,"11.",{"$f":"IF(Syllabus!C44=\"\",\"\",Syllabus!C44)","v":""},null,null,null,null,null,{"$f":"IF(Syllabus!C44=\"\",\"\",Syllabus!K44)","v":""},null,null,null,null,null,"",""]
[null,"12.",{"$f":"IF(Syllabus!C45=\"\",\"\",Syllabus!C45)","v":""},null,null,null,null,null,{"$f":"IF(Syllabus!C45=\"\",\"\",Syllabus!K45)","v":""},null,null,null,null,null,"",""]
[null,"13.",{"$f":"IF(Syllabus!C46=\"\",\"\",Syllabus!C46)","v":""},null,null,null,null,null,{"$f":"IF(Syllabus!C46=\"\",\"\",Syllabus!K46)","v":""},null,null,null,null,null,"",""]
[null,"14.",{"$f":"IF(Syllabus!C47=\"\",\"\",Syllabus!C47)","v":""},null,null,null,null,null,{"$f":"IF(Syllabus!C47=\"\",\"\",Syllabus!K47)","v":""},null,null,null,null,null,"",""]
[null,"15.",{"$f":"IF(Syllabus!C48=\"\",\"\",Syllabus!C48)","v":""},null,null,null,null,null,{"$f":"IF(Syllabus!C48=\"\",\"\",Syllabus!K48)","v":""},null,null,null,null,null,"",""]
[]
[null,null,"NOTE: The Average is calculated based on the following weights: Excellent = 5, Very Good = 4, Good = 3, Fair = 2, Poor = 1, and the number"]
[null,null,"of students who provided those evaluations."]
[]
[null,null,"SUMMARY: For a final analysis of individual student outcome (SO) scores from the above CAS results, please see the course report. The final score"]
[null,null,"for a particular SO will be evaluated by considering the scores of the different CLOs affecting that SO and combining them using equal weights."]
[]
[null,"Student Comments:"]
[null,"1."]
[null,"2."]
[null,"3."]
[null,"4."]
[null,"5."]
[null,"6."]
[null,"7."]
[null,"8."]
[null,"9."]
[null,"10."]
[null,"11."]
[null,"12."]
[null,"13."]
[null,"14."]
[null,"15."]
[null,"16."]
[null,"17."]
[null,"18."]
[null,"19."]
[null,"20."]
[null,"21."]
[null,"22."]
[null,"23."]
[null,"24."]
[null,"25."]
[null,"26."]
[null,"27."]
[null,"28."]
[null,"29."]
[null,"30."]
[null,"31."]
[null,"32."]
[null,"33."]
[null,"34."]
[null,"35."]
[null,"36."]
[null,"37."]
[null,"38."]
[null,"39."]
[null,"40."]
[null,"41."]
[null,"42."]
[null,"43."]
[null,"44."]
[null,"45."]
[null,"46."]
[null,"47."]
[null,"48."]
[null,"49."]
[null,"50."]

{"sheet":"Grades","index":4,"n_rows":25,"n_cols":67,"rows_kept":25,"cut":false,"hidden":false,"merged":[]}
[]
[null,"Please fill in below the grades for the assignments/projects/exams/problems that are used to directlymeasure student outcomes."]
[null,"Also include the assignment type in the description and indicate the maximum grade for that assignment. You can"]
[null,"find the CAF summary calculated automatically from these graes in the next sheet."]
[]
[null,"Course Grades"]
[]
[null,"Course Number:",null,{"$f":"Cover!F17","v":"0953421"},null,null,null,null,null,"Academic Year:",null,null,{"$f":"Cover!$F$23","v":"2024/2025"}]
[null,"Course Name:",null,{"$f":"Cover!$F$18","v":"Communications (I)"},null,null,null,null,null,"Semester:",null,null,{"$f":"Cover!$F$24","v":"1st"}]
[null,"Credit Hours:",null,{"$f":"Cover!F19","v":"3"}]
[null,"Course Type:",null,{"$f":"Cover!$F$20","v":"Required"},null,null,null,null,null,"Instructor:",null,null,{"$f":"Cover!$F$26","v":"Prof. Mohammed Hawa"}]
[]
[null,"Student outcome to be assessed:","[1]","[1]","[1]","[1]","[1]","[1]","","","","","","","","","","","","","",""]
[null,"Description","First Exam: Problem 3","Midterm Exam: Problem 5","Third Exam: All problems","Project 1","Assignment 5","Final Exam: Problem 1"]
[null,"Student ID","P1","P2","P3","P4","P5","P6","P7","P8","P9","P10","P11","P12","P13","P14","P15","P16","P17","P18","P19","P20",null,null,null,null,null,null,null,null,null,null,null,null,null,null,null,null,null,null,null,null,null,null,null,null,null,"Frequency for each assignment (after scaling grade to 0-5)"]
[null,"(Optional)  Pts",7,3,30,15,5,40,null,null,null,null,null,null,null,null,null,null,null,null,null,null,null,null,null,null,null,null,null,null,null,null,null,null,null,null,null,null,null,null,null,null,null,null,null,null,null,"P1","P2","P3","P4","P5","P6","P7","P8","P9","P10","P11","P12","P13","P14","P15","P16","P17","P18","P19","P20"]
[null,"01111111",1,1,15,14,4,33,null,null,null,null,null,null,null,null,null,null,null,null,null,null,null,null,null,null,null,null,null,null,null,null,null,null,null,null,null,null,null,null,null,null,null,null,null,null,null,{"$f":"IF(C$16=\"\",\"\",FREQUENCY(C$17:C$258,{1,2,3,4,5}*(C$16/5)))","v":2},{"$f":"IF(D$16=\"\",\"\",FREQUENCY(D$17:D$258,{1,2,3,4,5}*(D$16/5)))","v":2},{"$f":"IF(E$16=\"\",\"\",FREQUENCY(E$17:E$258,{1,2,3,4,5}*(E$16/5)))","v":3},{"$f":"IF(F$16=\"\",\"\",FREQUENCY(F$17:F$258,{1,2,3,4,5}*(F$16/5)))","v":0},{"$f":"IF(G$16=\"\",\"\",FREQUENCY(G$17:G$258,{1,2,3,4,5}*(G$16/5)))","v":3},{"$f":"IF(H$16=\"\",\"\",FREQUENCY(H$17:H$258,{1,2,3,4,5}*(H$16/5)))","v":2},{"$f":"IF(I$16=\"\",\"\",FREQUENCY(I$17:I$258,{1,2,3,4,5}*(I$16/5)))","v":""},{"$f":"IF(J$16=\"\",\"\",FREQUENCY(J$17:J$258,{1,2,3,4,5}*(J$16/5)))","v":""},{"$f":"IF(K$16=\"\",\"\",FREQUENCY(K$17:K$258,{1,2,3,4,5}*(K$16/5)))","v":""},{"$f":"IF(L$16=\"\",\"\",FREQUENCY(L$17:L$258,{1,2,3,4,5}*(L$16/5)))","v":""},{"$f":"IF(M$16=\"\",\"\",FREQUENCY(M$17:M$258,{1,2,3,4,5}*(M$16/5)))","v":""},{"$f":"IF(N$16=\"\",\"\",FREQUENCY(N$17:N$258,{1,2,3,4,5}*(N$16/5)))","v":""},{"$f":"IF(O$16=\"\",\"\",FREQUENCY(O$17:O$258,{1,2,3,4,5}*(O$16/5)))","v":""},{"$f":"IF(P$16=\"\",\"\",FREQUENCY(P$17:P$258,{1,2,3,4,5}*(P$16/5)))","v":""},{"$f":"IF(Q$16=\"\",\"\",FREQUENCY(Q$17:Q$258,{1,2,3,4,5}*(Q$16/5)))","v":""},{"$f":"IF(R$16=\"\",\"\",FREQUENCY(R$17:R$258,{1,2,3,4,5}*(R$16/5)))","v":""},{"$f":"IF(S$16=\"\",\"\",FREQUENCY(S$17:S$258,{1,2,3,4,5}*(S$16/5)))","v":""},{"$f":"IF(T$16=\"\",\"\",FREQUENCY(T$17:T$258,{1,2,3,4,5}*(T$16/5)))","v":""},{"$f":"IF(U$16=\"\",\"\",FREQUENCY(U$17:U$258,{1,2,3,4,5}*(U$16/5)))","v":""},{"$f":"IF(V$16=\"\",\"\",FREQUENCY(V$17:V$258,{1,2,3,4,5}*(V$16/5)))","v":""}]
[null,"02222222",2,0,4,13,null,22,null,null,null,null,null,null,null,null,null,null,null,null,null,null,null,null,null,null,null,null,null,null,null,null,null,null,null,null,null,null,null,null,null,null,null,null,null,null,null,1,3,1,0,1,1,"","","","","","","","","","","","","",""]
[null,"03333333",4.5,0.2,22,12,null,11,null,null,null,null,null,null,null,null,null,null,null,null,null,null,null,null,null,null,null,null,null,null,null,null,null,null,null,null,null,null,null,null,null,null,null,null,null,null,null,2,0,3,4,0,1,"","","","","","","","","","","","","",""]
[null,"04444444",3,3,27,11,1,1,null,null,null,null,null,null,null,null,null,null,null,null,null,null,null,null,null,null,null,null,null,null,null,null,null,null,null,null,null,null,null,null,null,null,null,null,null,null,null,2,3,1,3,1,0,"","","","","","","","","","","","","",""]
[null,"05555555",0,2,15,10,0,3,null,null,null,null,null,null,null,null,null,null,null,null,null,null,null,null,null,null,null,null,null,null,null,null,null,null,null,null,null,null,null,null,null,null,null,null,null,null,null,2,1,1,2,2,1,"","","","","","","","","","","","","",""]
[null,"06666666",7,2,18,9,0.5]
[null,"07777777",6,2,10,8,2]
[null,"08888888",5,1,1,7,5]
[null,"09999999",4,1,0,8,5]

{"sheet":"CAF","index":5,"n_rows":41,"n_cols":15,"rows_kept":41,"cut":false,"hidden":false,"merged":[]}
[]
[null,"Please fill in the grades in the previous sheet so that this report is automatically generated."]
[]
[]
[null,"CAF: Course assessment by faculty"]
[null,"Student outcomes directly assesed by faculty"]
[]
[null,"Course Number:",null,{"$f":"Cover!F17","v":"0953421"},null,null,null,"Academic Year:",{"$f":"Cover!$F$23","v":"2024/2025"}]
[null,"Course Name:",null,{"$f":"Cover!$F$18","v":"Communications (I)"},null,null,null,"Semester:",{"$f":"Cover!$F$24","v":"1st"}]
[null,"Credit Hours:",null,{"$f":"Cover!F19","v":"3"}]
[null,"Course Type:",null,{"$f":"Cover!$F$20","v":"Required"},null,null,null,"Instructor:",{"$f":"Cover!$F$26","v":"Prof. Mohammed Hawa"}]
[]
[null,"Total students in class:",null,null,{"$f":"Cover!$F$25","v":57}]
[null,null,null,null,null,null,null,null,"[0, 1]","(1, 2]","(2, 3]","(3, 4]","(4, 5]","[out of 5]","Evaluating"]
[null,"Assignment",null,"Description",null,null,null,"[SO]","Poor","Fair","Good","V. Good","Excellent","Average","students"]
[null,"P1",{"$f":"IF(Grades!$C$16=\"\",\"\",\"(\" & Grades!$C$16 & \" pts)\")","v":"(7 pts)"},{"$f":"IF(Grades!$C$16=\"\",\"\",Grades!$C$14)","v":"First Exam: Problem 3"},null,null,null,{"$f":"IF(Grades!$C$16=\"\",\"\",Grades!$C$13)","v":"[1]"},{"$f":"Grades!$AV$17","v":2},{"$f":"Grades!$AV$18","v":1},{"$f":"Grades!$AV$19","v":2},{"$f":"Grades!$AV$20","v":2},{"$f":"Grades!$AV$21","v":2},{"$f":"IF($I16=\"\",\"\",ROUND(($I16*1+$J16*2+$K16*3+$L16*4+$M16*5)/SUM($I16:$M16),2))","v":3.11},{"$f":"IF($I16=\"\",\"\",SUM($I16:$M16))","v":9}]
[null,"P2",{"$f":"IF(Grades!$D$16=\"\",\"\",\"(\" & Grades!$D$16 & \" pts)\")","v":"(3 pts)"},{"$f":"IF(Grades!$D$16=\"\",\"\",Grades!$D$14)","v":"Midterm Exam: Problem 5"},null,null,null,{"$f":"IF(Grades!$D$16=\"\",\"\",Grades!$D$13)","v":"[1]"},{"$f":"Grades!$AW$17","v":2},{"$f":"Grades!$AW$18","v":3},{"$f":"Grades!$AW$19","v":0},{"$f":"Grades!$AW$20","v":3},{"$f":"Grades!$AW$21","v":1},{"$f":"IF($I17=\"\",\"\",ROUND(($I17*1+$J17*2+$K17*3+$L17*4+$M17*5)/SUM($I17:$M17),2))","v":2.78},{"$f":"IF($I17=\"\",\"\",SUM($I17:$M17))","v":9}]
[null,"P3",{"$f":"IF(Grades!$E$16=\"\",\"\",\"(\" & Grades!$E$16 & \" pts)\")","v":"(30 pts)"},{"$f":"IF(Grades!$E$16=\"\",\"\",Grades!$E$14)","v":"Third Exam: All problems"},null,null,null,{"$f":"IF(Grades!$E$16=\"\",\"\",Grades!$E$13)","v":"[1]"},{"$f":"Grades!$AX$17","v":3},{"$f":"Grades!$AX$18","v":1},{"$f":"Grades!$AX$19","v":3},{"$f":"Grades!$AX$20","v":1},{"$f":"Grades!$AX$21","v":1},2.56,9]
[null,"P4",{"$f":"IF(Grades!$F$16=\"\",\"\",\"(\" & Grades!$F$16 & \" pts)\")","v":"(15 pts)"},{"$f":"IF(Grades!$F$16=\"\",\"\",Grades!$F$14)","v":"Project 1"},null,null,null,{"$f":"IF(Grades!$F$16=\"\",\"\",Grades!$F$13)","v":"[1]"},{"$f":"Grades!$AY$17","v":0},{"$f":"Grades!$AY$18","v":0},{"$f":"Grades!$AY$19","v":4},{"$f":"Grades!$AY$20","v":3},{"$f":"Grades!$AY$21","v":2},3.78,9]
[null,"P5",{"$f":"IF(Grades!$G$16=\"\",\"\",\"(\" & Grades!$G$16 & \" pts)\")","v":"(5 pts)"},{"$f":"IF(Grades!$G$16=\"\",\"\",Grades!$G$14)","v":"Assignment 5"},null,null,null,{"$f":"IF(Grades!$G$16=\"\",\"\",Grades!$G$13)","v":"[1]"},{"$f":"Grades!$AZ$17","v":3},{"$f":"Grades!$AZ$18","v":1},{"$f":"Grades!$AZ$19","v":0},{"$f":"Grades!$AZ$20","v":1},{"$f":"Grades!$AZ$21","v":2},2.71,7]
[null,"P6",{"$f":"IF(Grades!$H$16=\"\",\"\",\"(\" & Grades!$H$16 & \" pts)\")","v":"(40 pts)"},{"$f":"IF(Grades!$H$16=\"\",\"\",Grades!$H$14)","v":"Final Exam: Problem 1"},null,null,null,{"$f":"IF(Grades!$H$16=\"\",\"\",Grades!$H$13)","v":"[1]"},{"$f":"Grades!$BA$17","v":2},{"$f":"Grades!$BA$18","v":1},{"$f":"Grades!$BA$19","v":1},{"$f":"Grades!$BA$20","v":0},{"$f":"Grades!$BA$21","v":1},2.4,5]
[null,"P7",{"$f":"IF(Grades!$I$16=\"\",\"\",\"(\" & Grades!$I$16 & \" pts)\")","v":""},{"$f":"IF(Grades!$I$16=\"\",\"\",Grades!$I$14)","v":""},null,null,null,{"$f":"IF(Grades!$I$16=\"\",\"\",Grades!$I$13)","v":""},{"$f":"Grades!$BB$17","v":""},{"$f":"Grades!$BB$18","v":""},{"$f":"Grades!$BB$19","v":""},{"$f":"Grades!$BB$20","v":""},{"$f":"Grades!$BB$21","v":""},"",""]
[null,"P8",{"$f":"IF(Grades!$J$16=\"\",\"\",\"(\" & Grades!$J$16 & \" pts)\")","v":""},{"$f":"IF(Grades!$J$16=\"\",\"\",Grades!$J$14)","v":""},null,null,null,{"$f":"IF(Grades!$J$16=\"\",\"\",Grades!$J$13)","v":""},{"$f":"Grades!$BC$17","v":""},{"$f":"Grades!$BC$18","v":""},{"$f":"Grades!$BC$19","v":""},{"$f":"Grades!$BC$20","v":""},{"$f":"Grades!$BC$21","v":""},"",""]
[null,"P9",{"$f":"IF(Grades!$K$16=\"\",\"\",\"(\" & Grades!$K$16 & \" pts)\")","v":""},{"$f":"IF(Grades!$K$16=\"\",\"\",Grades!$K$14)","v":""},null,null,null,{"$f":"IF(Grades!$K$16=\"\",\"\",Grades!$K$13)","v":""},{"$f":"Grades!$BD$17","v":""},{"$f":"Grades!$BD$18","v":""},{"$f":"Grades!$BD$19","v":""},{"$f":"Grades!$BD$20","v":""},{"$f":"Grades!$BD$21","v":""},"",""]
[null,"P10",{"$f":"IF(Grades!$L$16=\"\",\"\",\"(\" & Grades!$L$16 & \" pts)\")","v":""},{"$f":"IF(Grades!$L$16=\"\",\"\",Grades!$L$14)","v":""},null,null,null,{"$f":"IF(Grades!$L$16=\"\",\"\",Grades!$L$13)","v":""},{"$f":"Grades!$BE$17","v":""},{"$f":"Grades!$BE$18","v":""},{"$f":"Grades!$BE$19","v":""},{"$f":"Grades!$BE$20","v":""},{"$f":"Grades!$BE$21","v":""},"",""]
[null,"P11",{"$f":"IF(Grades!$M$16=\"\",\"\",\"(\" & Grades!$M$16 & \" pts)\")","v":""},{"$f":"IF(Grades!$M$16=\"\",\"\",Grades!$M$14)","v":""},null,null,null,{"$f":"IF(Grades!$M$16=\"\",\"\",Grades!$M$13)","v":""},{"$f":"Grades!$BF$17","v":""},{"$f":"Grades!$BF$18","v":""},{"$f":"Grades!$BF$19","v":""},{"$f":"Grades!$BF$20","v":""},{"$f":"Grades!$BF$21","v":""},"",""]
[null,"P12",{"$f":"IF(Grades!$N$16=\"\",\"\",\"(\" & Grades!$N$16 & \" pts)\")","v":""},{"$f":"IF(Grades!$N$16=\"\",\"\",Grades!$N$14)","v":""},null,null,null,{"$f":"IF(Grades!$N$16=\"\",\"\",Grades!$N$13)","v":""},{"$f":"Grades!$BG$17","v":""},{"$f":"Grades!$BG$18","v":""},{"$f":"Grades!$BG$19","v":""},{"$f":"Grades!$BG$20","v":""},{"$f":"Grades!$BG$21","v":""},"",""]
[null,"P13",{"$f":"IF(Grades!$O$16=\"\",\"\",\"(\" & Grades!$O$16 & \" pts)\")","v":""},{"$f":"IF(Grades!$O$16=\"\",\"\",Grades!$O$14)","v":""},null,null,null,{"$f":"IF(Grades!$O$16=\"\",\"\",Grades!$O$13)","v":""},{"$f":"Grades!$BH$17","v":""},{"$f":"Grades!$BH$18","v":""},{"$f":"Grades!$BH$19","v":""},{"$f":"Grades!$BH$20","v":""},{"$f":"Grades!$BH$21","v":""},"",""]
[null,"P14",{"$f":"IF(Grades!$P$16=\"\",\"\",\"(\" & Grades!$P$16 & \" pts)\")","v":""},{"$f":"IF(Grades!$P$16=\"\",\"\",Grades!$P$14)","v":""},null,null,null,{"$f":"IF(Grades!$P$16=\"\",\"\",Grades!$P$13)","v":""},{"$f":"Grades!$BI$17","v":""},{"$f":"Grades!$BI$18","v":""},{"$f":"Grades!$BI$19","v":""},{"$f":"Grades!$BI$20","v":""},{"$f":"Grades!$BI$21","v":""},"",""]
[null,"P15",{"$f":"IF(Grades!$Q$16=\"\",\"\",\"(\" & Grades!$Q$16 & \" pts)\")","v":""},{"$f":"IF(Grades!$Q$16=\"\",\"\",Grades!$Q$14)","v":""},null,null,null,{"$f":"IF(Grades!$Q$16=\"\",\"\",Grades!$Q$13)","v":""},{"$f":"Grades!$BJ$17","v":""},{"$f":"Grades!$BJ$18","v":""},{"$f":"Grades!$BJ$19","v":""},{"$f":"Grades!$BJ$20","v":""},{"$f":"Grades!$BJ$21","v":""},"",""]
[null,"P16",{"$f":"IF(Grades!$R$16=\"\",\"\",\"(\" & Grades!$R$16 & \" pts)\")","v":""},{"$f":"IF(Grades!$R$16=\"\",\"\",Grades!$R$14)","v":""},null,null,null,{"$f":"IF(Grades!$R$16=\"\",\"\",Grades!$R$13)","v":""},{"$f":"Grades!$BK$17","v":""},{"$f":"Grades!$BK$18","v":""},{"$f":"Grades!$BK$19","v":""},{"$f":"Grades!$BK$20","v":""},{"$f":"Grades!$BK$21","v":""},"",""]
[null,"P17",{"$f":"IF(Grades!$S$16=\"\",\"\",\"(\" & Grades!$S$16 & \" pts)\")","v":""},{"$f":"IF(Grades!$S$16=\"\",\"\",Grades!$S$14)","v":""},null,null,null,{"$f":"IF(Grades!$S$16=\"\",\"\",Grades!$S$13)","v":""},{"$f":"Grades!$BL$17","v":""},{"$f":"Grades!$BL$18","v":""},{"$f":"Grades!$BL$19","v":""},{"$f":"Grades!$BL$20","v":""},{"$f":"Grades!$BL$21","v":""},"",""]
[null,"P18",{"$f":"IF(Grades!$T$16=\"\",\"\",\"(\" & Grades!$T$16 & \" pts)\")","v":""},{"$f":"IF(Grades!$T$16=\"\",\"\",Grades!$T$14)","v":""},null,null,null,{"$f":"IF(Grades!$T$16=\"\",\"\",Grades!$T$13)","v":""},{"$f":"Grades!$BM$17","v":""},{"$f":"Grades!$BM$18","v":""},{"$f":"Grades!$BM$19","v":""},{"$f":"Grades!$BM$20","v":""},{"$f":"Grades!$BM$21","v":""},"",""]
[null,"P19",{"$f":"IF(Grades!$U$16=\"\",\"\",\"(\" & Grades!$U$16 & \" pts)\")","v":""},{"$f":"IF(Grades!$U$16=\"\",\"\",Grades!$U$14)","v":""},null,null,null,{"$f":"IF(Grades!$U$16=\"\",\"\",Grades!$U$13)","v":""},{"$f":"Grades!$BN$17","v":""},{"$f":"Grades!$BN$18","v":""},{"$f":"Grades!$BN$19","v":""},{"$f":"Grades!$BN$20","v":""},{"$f":"Grades!$BN$21","v":""},"",""]
[null,"P20",{"$f":"IF(Grades!$V$16=\"\",\"\",\"(\" & Grades!$V$16 & \" pts)\")","v":""},{"$f":"IF(Grades!$V$16=\"\",\"\",Grades!$V$14)","v":""},null,null,null,{"$f":"IF(Grades!$V$16=\"\",\"\",Grades!$V$13)","v":""},{"$f":"Grades!$BO$17","v":""},{"$f":"Grades!$BO$18","v":""},{"$f":"Grades!$BO$19","v":""},{"$f":"Grades!$BO$20","v":""},{"$f":"Grades!$BO$21","v":""},"",""]
[]
[null,"NOTE: The Average is calculated based on the following weights: Excellent = 5, Very Good = 4, Good = 3, Fair = 2, Poor = 1, and the number"]
[null,"of students who obtained those score levels."]
[]
[null,"SUMMARY: For a final analysis of individual student outcome (SO) scores from the above CAF results, please see the course report. The final score"]
[null,"for a particular SO will be evaluated by considering the scores of the different assignments affecting that SO and combining them using equal weights."]

{"sheet":"Report","index":6,"n_rows":97,"n_cols":36,"rows_kept":97,"cut":false,"hidden":false,"merged":[[44,2,44,12],[45,2,45,12],[39,2,39,12],[40,2,40,12],[41,2,41,12],[42,2,42,12],[43,2,43,12],[37,2,37,12],[38,2,38,12],[32,2,32,12],[33,2,33,12],[34,2,34,12],[35,2,35,12],[36,2,36,12],[85,1,85,15],[100,1,100,15],[19,2,19,12],[20,2,20,12],[21,2,21,12],[22,2,22,12],[23,2,23,12],[24,2,24,12],[25,2,25,12],[26,2,26,12],[27,2,27,12],[28,2,28,12],[29,2,29,12],[30,2,30,12],[31,2,31,12],[67,2,67,12],[46,2,46,12],[47,2,47,12],[48,2,48,12],[49,2,49,12],[50,2,50,12],[51,2,51,12],[52,2,52,12],[53,2,53,12],[54,2,54,12],[55,2,55,12],[56,2,56,12],[57,2,57,12],[58,2,58,12],[59,2,59,12],[60,2,60,12],[61,2,61,12],[76,2,76,12],[77,2,77,12],[71,2,71,12],[72,2,72,12],[73,2,73,12],[74,2,74,12],[75,2,75,12],[68,2,68,12],[69,2,69,12],[70,2,70,12],[62,2,62,12],[63,2,63,12],[64,2,64,12],[65,2,65,12],[66,2,66,12]]}
[]
[null,"This is a final analysis of individual student outcome (SO) based on the above CAF and CAS results."]
[null,"Please make sure that the CAF and CAS sheet are properly filled and calculated, then select required thresholds."]
[null,"Also remember to fill your comments and feedback at the bottom of this sheet."]
[]
[null,"Course Report"]
[null,"Student outcomes as assesed by both faculty and students"]
[]
[null,"Course Number:",null,null,{"$f":"Cover!F17","v":"0953421"},null,null,null,null,null,null,null,null,"Academic Year:",{"$f":"Cover!$F$23","v":"2024/2025"}]
[null,"Course Name:",null,null,{"$f":"Cover!$F$18","v":"Communications (I)"},null,null,null,null,null,null,null,null,"Semester:",{"$f":"Cover!$F$24","v":"1st"}]
[null,"Credit Hours:",null,null,{"$f":"Cover!F19","v":"3"}]
[null,"Course Type:",null,null,{"$f":"Cover!$F$20","v":"Required"},null,null,null,null,null,null,null,null,"Instructor:",{"$f":"Cover!$F$26","v":"Prof. Mohammed Hawa"}]
[]
[null,"CAS Benchmark:",null,null,2,"[out of 5]",null,"for satisfactory perofrmance"]
[null,"CAF Benchmark:",null,null,2,"[out of 5]",null,"for satisfactory perofrmance"]
[]
[null,"Total students in class:",null,null,null,{"$f":"Cover!$F$25","v":57}]
[null,null,null,null,null,null,null,null,null,null,null,null,null,null,null,null,null,null,null,null,null,null,null,null,null,null,null,null,null,null,null,null,null,null,"The following might have zeros"]
[null,"[SO]","Student outcome description",null,null,null,null,null,null,null,null,null,null,"CAS Average","CAF Average","Comment",null,null,null,null,null,null,null,null,null,null,null,null,null,null,null,null,null,null,"CAS Average","CAF Average"]
[null,{"$f":"SO!$B7","v":1},{"$f":"SO!$C7","v":"An ability to identify, formulate, and solve complex engineering problems by applying principles of engineering, science, and mathematics."},null,null,null,null,null,null,null,null,null,null,{"$f":"IF($B20=\"\",\"\",IF($AI20=0,\"\",$AI20))","v":3.89},{"$f":"IF($B20=\"\",\"\",IF($AJ20=0,\"\",$AJ20))","v":2.89},{"$f":"IF(AND($N20=\"\",$O20=\"\"),\"N.A.\",IF(AND($N20>=$E$14, $O20>=$E$15), \"Satisfactory perofrmance\", IF(AND($N20<$E$14, $O20<$E$15), \"CAS and CAF below benchmark\", IF($N20<$E$14, \"CAS below benchmark\", \"\") & IF($O20<$E$15, \"CAF below benchmark\", \"\"))))","v":"Satisfactory perofrmance"},null,null,null,null,null,null,null,null,null,null,null,null,null,null,null,null,null,null,{"$f":"IF($B20=\"\",0,ROUND(CombineSOAverages($B20, CAS!$I$16:$I$30, CAS!$O$16:$O$30),2))","v":3.89},{"$f":"IF($B20=\"\",0,ROUND(CombineSOAverages($B20, CAF!$H$16:$H$35, CAF!$N$16:$N$35),2))","v":2.89}]
[null,{"$f":"SO!$B8","v":2},{"$f":"SO!$C8","v":"An ability to apply engineering design to produce solutions that meet specified needs with consideration of public health, safety, and welfare, as well as global, cultural, social, environmental, and economic factors."},null,null,null,null,null,null,null,null,null,null,"","",{"$f":"IF(AND($N21=\"\",$O21=\"\"),\"N.A.\",IF(AND($N21>=$E$14, $O21>=$E$15), \"Satisfactory perofrmance\", IF(AND($N21<$E$14, $O21<$E$15), \"CAS and CAF below benchmark\", IF($N21<$E$14, \"CAS below benchmark\", \"\") & IF($O21<$E$15, \"CAF below benchmark\", \"\"))))","v":"N.A."},null,null,null,null,null,null,null,null,null,null,null,null,null,null,null,null,null,null,{"$f":"IF($B21=\"\",0,ROUND(CombineSOAverages($B21, CAS!$I$16:$I$30, CAS!$O$16:$O$30),2))","v":0},{"$f":"IF($B21=\"\",0,ROUND(CombineSOAverages($B21, CAF!$H$16:$H$35, CAF!$N$16:$N$35),2))","v":0}]
[null,{"$f":"SO!$B9","v":3},{"$f":"SO!$C9","v":"An ability to communicate effectively with a range of audiences."},null,null,null,null,null,null,null,null,null,null,"","","N.A.",null,null,null,null,null,null,null,null,null,null,null,null,null,null,null,null,null,null,{"$f":"IF($B22=\"\",0,ROUND(CombineSOAverages($B22, CAS!$I$16:$I$30, CAS!$O$16:$O$30),2))","v":0},{"$f":"IF($B22=\"\",0,ROUND(CombineSOAverages($B22, CAF!$H$16:$H$35, CAF!$N$16:$N$35),2))","v":0}]
[null,{"$f":"SO!$B10","v":4},{"$f":"SO!$C10","v":"An ability to recognize ethical and professional responsibilities in engineering situations and make informed judgments, which must consider the impact of engineering solutions in global, economic, environmental, and societal contexts."},null,null,null,null,null,null,null,null,null,null,"","","N.A.",null,null,null,null,null,null,null,null,null,null,null,null,null,null,null,null,null,null,{"$f":"IF($B23=\"\",0,ROUND(CombineSOAverages($B23, CAS!$I$16:$I$30, CAS!$O$16:$O$30),2))","v":0},{"$f":"IF($B23=\"\",0,ROUND(CombineSOAverages($B23, CAF!$H$16:$H$35, CAF!$N$16:$N$35),2))","v":0}]
[null,{"$f":"SO!$B11","v":5},{"$f":"SO!$C11","v":"An ability to function effectively on a team whose members together provide leadership, create a collaborative and inclusive environment, establish goals, plan tasks, and meet objectives."},null,null,null,null,null,null,null,null,null,null,"","","N.A.",null,null,null,null,null,null,null,null,null,null,null,null,null,null,null,null,null,null,{"$f":"IF($B24=\"\",0,ROUND(CombineSOAverages($B24, CAS!$I$16:$I$30, CAS!$O$16:$O$30),2))","v":0},{"$f":"IF($B24=\"\",0,ROUND(CombineSOAverages($B24, CAF!$H$16:$H$35, CAF!$N$16:$N$35),2))","v":0}]
[null,{"$f":"SO!$B12","v":6},{"$f":"SO!$C12","v":"An ability to develop and conduct appropriate experimentation, analyze and interpret data, and use engineering judgment to draw conclusions."},null,null,null,null,null,null,null,null,null,null,"","","N.A.",null,null,null,null,null,null,null,null,null,null,null,null,null,null,null,null,null,null,{"$f":"IF($B25=\"\",0,ROUND(CombineSOAverages($B25, CAS!$I$16:$I$30, CAS!$O$16:$O$30),2))","v":0},{"$f":"IF($B25=\"\",0,ROUND(CombineSOAverages($B25, CAF!$H$16:$H$35, CAF!$N$16:$N$35),2))","v":0}]
[null,{"$f":"SO!$B13","v":7},{"$f":"SO!$C13","v":"An ability to acquire and apply new knowledge as needed, using appropriate learning strategies."},null,null,null,null,null,null,null,null,null,null,"","","N.A.",null,null,null,null,null,null,null,null,null,null,null,null,null,null,null,null,null,null,{"$f":"IF($B26=\"\",0,ROUND(CombineSOAverages($B26, CAS!$I$16:$I$30, CAS!$O$16:$O$30),2))","v":0},{"$f":"IF($B26=\"\",0,ROUND(CombineSOAverages($B26, CAF!$H$16:$H$35, CAF!$N$16:$N$35),2))","v":0}]
[null,{"$f":"SO!$B14","v":""},{"$f":"SO!$C14","v":""},null,null,null,null,null,null,null,null,null,null,"","","N.A.",null,null,null,null,null,null,null,null,null,null,null,null,null,null,null,null,null,null,{"$f":"IF($B27=\"\",0,ROUND(CombineSOAverages($B27, CAS!$I$16:$I$30, CAS!$O$16:$O$30),2))","v":0},{"$f":"IF($B27=\"\",0,ROUND(CombineSOAverages($B27, CAF!$H$16:$H$35, CAF!$N$16:$N$35),2))","v":0}]
[null,{"$f":"SO!$B15","v":""},{"$f":"SO!$C15","v":""},null,null,null,null,null,null,null,null,null,null,"","","N.A.",null,null,null,null,null,null,null,null,null,null,null,null,null,null,null,null,null,null,{"$f":"IF($B28=\"\",0,ROUND(CombineSOAverages($B28, CAS!$I$16:$I$30, CAS!$O$16:$O$30),2))","v":0},{"$f":"IF($B28=\"\",0,ROUND(CombineSOAverages($B28, CAF!$H$16:$H$35, CAF!$N$16:$N$35),2))","v":0}]
[null,{"$f":"SO!$B16","v":""},{"$f":"SO!$C16","v":""},null,null,null,null,null,null,null,null,null,null,"","","N.A.",null,null,null,null,null,null,null,null,null,null,null,null,null,null,null,null,null,null,{"$f":"IF($B29=\"\",0,ROUND(CombineSOAverages($B29, CAS!$I$16:$I$30, CAS!$O$16:$O$30),2))","v":0},{"$f":"IF($B29=\"\",0,ROUND(CombineSOAverages($B29, CAF!$H$16:$H$35, CAF!$N$16:$N$35),2))","v":0}]
[null,{"$f":"SO!$B17","v":""},{"$f":"SO!$C17","v":""},null,null,null,null,null,null,null,null,null,null,"","","N.A.",null,null,null,null,null,null,null,null,null,null,null,null,null,null,null,null,null,null,{"$f":"IF($B30=\"\",0,ROUND(CombineSOAverages($B30, CAS!$I$16:$I$30, CAS!$O$16:$O$30),2))","v":0},{"$f":"IF($B30=\"\",0,ROUND(CombineSOAverages($B30, CAF!$H$16:$H$35, CAF!$N$16:$N$35),2))","v":0}]
[null,{"$f":"SO!$B18","v":""},{"$f":"SO!$C18","v":""},null,null,null,null,null,null,null,null,null,null,"","","N.A.",null,null,null,null,null,null,null,null,null,null,null,null,null,null,null,null,null,null,{"$f":"IF($B31=\"\",0,ROUND(CombineSOAverages($B31, CAS!$I$16:$I$30, CAS!$O$16:$O$30),2))","v":0},{"$f":"IF($B31=\"\",0,ROUND(CombineSOAverages($B31, CAF!$H$16:$H$35, CAF!$N$16:$N$35),2))","v":0}]
[null,{"$f":"SO!$B19","v":""},{"$f":"SO!$C19","v":""},null,null,null,null,null,null,null,null,null,null,"","","N.A.",null,null,null,null,null,null,null,null,null,null,null,null,null,null,null,null,null,null,{"$f":"IF($B32=\"\",0,ROUND(CombineSOAverages($B32, CAS!$I$16:$I$30, CAS!$O$16:$O$30),2))","v":0},{"$f":"IF($B32=\"\",0,ROUND(CombineSOAverages($B32, CAF!$H$16:$H$35, CAF!$N$16:$N$35),2))","v":0}]
[null,{"$f":"SO!$B20","v":""},{"$f":"SO!$C20","v":""},null,null,null,null,null,null,null,null,null,null,"","","N.A.",null,null,null,null,null,null,null,null,null,null,null,null,null,null,null,null,null,null,{"$f":"IF($B33=\"\",0,ROUND(CombineSOAverages($B33, CAS!$I$16:$I$30, CAS!$O$16:$O$30),2))","v":0},{"$f":"IF($B33=\"\",0,ROUND(CombineSOAverages($B33, CAF!$H$16:$H$35, CAF!$N$16:$N$35),2))","v":0}]
[null,{"$f":"SO!$B21","v":""},{"$f":"SO!$C21","v":""},null,null,null,null,null,null,null,null,null,null,"","","N.A.",null,null,null,null,null,null,null,null,null,null,null,null,null,null,null,null,null,null,{"$f":"IF($B34=\"\",0,ROUND(CombineSOAverages($B34, CAS!$I$16:$I$30, CAS!$O$16:$O$30),2))","v":0},{"$f":"IF($B34=\"\",0,ROUND(CombineSOAverages($B34, CAF!$H$16:$H$35, CAF!$N$16:$N$35),2))","v":0}]
[null,{"$f":"SO!$B22","v":""},{"$f":"SO!$C22","v":""},null,null,null,null,null,null,null,null,null,null,"","","N.A.",null,null,null,null,null,null,null,null,null,null,null,null,null,null,null,null,null,null,{"$f":"IF($B35=\"\",0,ROUND(CombineSOAverages($B35, CAS!$I$16:$I$30, CAS!$O$16:$O$30),2))","v":0},{"$f":"IF($B35=\"\",0,ROUND(CombineSOAverages($B35, CAF!$H$16:$H$35, CAF!$N$16:$N$35),2))","v":0}]
[null,{"$f":"SO!$B23","v":""},{"$f":"SO!$C23","v":""},null,null,null,null,null,null,null,null,null,null,"","","N.A.",null,null,null,null,null,null,null,null,null,null,null,null,null,null,null,null,null,null,{"$f":"IF($B36=\"\",0,ROUND(CombineSOAverages($B36, CAS!$I$16:$I$30, CAS!$O$16:$O$30),2))","v":0},{"$f":"IF($B36=\"\",0,ROUND(CombineSOAverages($B36, CAF!$H$16:$H$35, CAF!$N$16:$N$35),2))","v":0}]
[null,{"$f":"SO!$B24","v":""},{"$f":"SO!$C24","v":""},null,null,null,null,null,null,null,null,null,null,"","","N.A.",null,null,null,null,null,null,null,null,null,null,null,null,null,null,null,null,null,null,{"$f":"IF($B37=\"\",0,ROUND(CombineSOAverages($B37, CAS!$I$16:$I$30, CAS!$O$16:$O$30),2))","v":0},{"$f":"IF($B37=\"\",0,ROUND(CombineSOAverages($B37, CAF!$H$16:$H$35, CAF!$N$16:$N$35),2))","v":0}]
[null,{"$f":"SO!$B25","v":""},{"$f":"SO!$C25","v":""},null,null,null,null,null,null,null,null,null,null,"","","N.A.",null,null,null,null,null,null,null,null,null,null,null,null,null,null,null,null,null,null,{"$f":"IF($B38=\"\",0,ROUND(CombineSOAverages($B38, CAS!$I$16:$I$30, CAS!$O$16:$O$30),2))","v":0},{"$f":"IF($B38=\"\",0,ROUND(CombineSOAverages($B38, CAF!$H$16:$H$35, CAF!$N$16:$N$35),2))","v":0}]
[null,{"$f":"SO!$B26","v":""},{"$f":"SO!$C26","v":""},null,null,null,null,null,null,null,null,null,null,"","","N.A.",null,null,null,null,null,null,null,null,null,null,null,null,null,null,null,null,null,null,{"$f":"IF($B39=\"\",0,ROUND(CombineSOAverages($B39, CAS!$I$16:$I$30, CAS!$O$16:$O$30),2))","v":0},{"$f":"IF($B39=\"\",0,ROUND(CombineSOAverages($B39, CAF!$H$16:$H$35, CAF!$N$16:$N$35),2))","v":0}]
[null,{"$f":"SO!$B27","v":""},{"$f":"SO!$C27","v":""},null,null,null,null,null,null,null,null,null,null,"","","N.A.",null,null,null,null,null,null,null,null,null,null,null,null,null,null,null,null,null,null,{"$f":"IF($B40=\"\",0,ROUND(CombineSOAverages($B40, CAS!$I$16:$I$30, CAS!$O$16:$O$30),2))","v":0},{"$f":"IF($B40=\"\",0,ROUND(CombineSOAverages($B40, CAF!$H$16:$H$35, CAF!$N$16:$N$35),2))","v":0}]
[null,{"$f":"SO!$B28","v":""},{"$f":"SO!$C28","v":""},null,null,null,null,null,null,null,null,null,null,"","","N.A.",null,null,null,null,null,null,null,null,null,null,null,null,null,null,null,null,null,null,{"$f":"IF($B41=\"\",0,ROUND(CombineSOAverages($B41, CAS!$I$16:$I$30, CAS!$O$16:$O$30),2))","v":0},{"$f":"IF($B41=\"\",0,ROUND(CombineSOAverages($B41, CAF!$H$16:$H$35, CAF!$N$16:$N$35),2))","v":0}]
[null,{"$f":"SO!$B29","v":""},{"$f":"SO!$C29","v":""},null,null,null,null,null,null,null,null,null,null,"","","N.A.",null,null,null,null,null,null,null,null,null,null,null,null,null,null,null,null,null,null,{"$f":"IF($B42=\"\",0,ROUND(CombineSOAverages($B42, CAS!$I$16:$I$30, CAS!$O$16:$O$30),2))","v":0},{"$f":"IF($B42=\"\",0,ROUND(CombineSOAverages($B42, CAF!$H$16:$H$35, CAF!$N$16:$N$35),2))","v":0}]
[null,{"$f":"SO!$B30","v":""},{"$f":"SO!$C30","v":""},null,null,null,null,null,null,null,null,null,null,"","","N.A.",null,null,null,null,null,null,null,null,null,null,null,null,null,null,null,null,null,null,{"$f":"IF($B43=\"\",0,ROUND(CombineSOAverages($B43, CAS!$I$16:$I$30, CAS!$O$16:$O$30),2))","v":0},{"$f":"IF($B43=\"\",0,ROUND(CombineSOAverages($B43, CAF!$H$16:$H$35, CAF!$N$16:$N$35),2))","v":0}]
[null,{"$f":"SO!$B31","v":""},{"$f":"SO!$C31","v":""},null,null,null,null,null,null,null,null,null,null,"","","N.A.",null,null,null,null,null,null,null,null,null,null,null,null,null,null,null,null,null,null,{"$f":"IF($B44=\"\",0,ROUND(CombineSOAverages($B44, CAS!$I$16:$I$30, CAS!$O$16:$O$30),2))","v":0},{"$f":"IF($B44=\"\",0,ROUND(CombineSOAverages($B44, CAF!$H$16:$H$35, CAF!$N$16:$N$35),2))","v":0}]
[null,{"$f":"SO!$B32","v":""},{"$f":"SO!$C32","v":""},null,null,null,null,null,null,null,null,null,null,"","","N.A.",null,null,null,null,null,null,null,null,null,null,null,null,null,null,null,null,null,null,{"$f":"IF($B45=\"\",0,ROUND(CombineSOAverages($B45, CAS!$I$16:$I$30, CAS!$O$16:$O$30),2))","v":0},{"$f":"IF($B45=\"\",0,ROUND(CombineSOAverages($B45, CAF!$H$16:$H$35, CAF!$N$16:$N$35),2))","v":0}]
[null,{"$f":"SO!$B33","v":""},{"$f":"SO!$C33","v":""},null,null,null,null,null,null,null,null,null,null,"","","N.A.",null,null,null,null,null,null,null,null,null,null,null,null,null,null,null,null,null,null,{"$f":"IF($B46=\"\",0,ROUND(CombineSOAverages($B46, CAS!$I$16:$I$30, CAS!$O$16:$O$30),2))","v":0},{"$f":"IF($B46=\"\",0,ROUND(CombineSOAverages($B46, CAF!$H$16:$H$35, CAF!$N$16:$N$35),2))","v":0}]
[null,{"$f":"SO!$B34","v":""},{"$f":"SO!$C34","v":""},null,null,null,null,null,null,null,null,null,null,"","","N.A.",null,null,null,null,null,null,null,null,null,null,null,null,null,null,null,null,null,null,{"$f":"IF($B47=\"\",0,ROUND(CombineSOAverages($B47, CAS!$I$16:$I$30, CAS!$O$16:$O$30),2))","v":0},{"$f":"IF($B47=\"\",0,ROUND(CombineSOAverages($B47, CAF!$H$16:$H$35, CAF!$N$16:$N$35),2))","v":0}]
[null,{"$f":"SO!$B35","v":""},{"$f":"SO!$C35","v":""},null,null,null,null,null,null,null,null,null,null,"","","N.A.",null,null,null,null,null,null,null,null,null,null,null,null,null,null,null,null,null,null,{"$f":"IF($B48=\"\",0,ROUND(CombineSOAverages($B48, CAS!$I$16:$I$30, CAS!$O$16:$O$30),2))","v":0},{"$f":"IF($B48=\"\",0,ROUND(CombineSOAverages($B48, CAF!$H$16:$H$35, CAF!$N$16:$N$35),2))","v":0}]
[null,{"$f":"SO!$B36","v":""},{"$f":"SO!$C36","v":""},null,null,null,null,null,null,null,null,null,null,"","","N.A.",null,null,null,null,null,null,null,null,null,null,null,null,null,null,null,null,null,null,{"$f":"IF($B49=\"\",0,ROUND(CombineSOAverages($B49, CAS!$I$16:$I$30, CAS!$O$16:$O$30),2))","v":0},{"$f":"IF($B49=\"\",0,ROUND(CombineSOAverages($B49, CAF!$H$16:$H$35, CAF!$N$16:$N$35),2))","v":0}]
[null,{"$f":"SO!$B37","v":""},{"$f":"SO!$C37","v":""},null,null,null,null,null,null,null,null,null,null,"","","N.A.",null,null,null,null,null,null,null,null,null,null,null,null,null,null,null,null,null,null,{"$f":"IF($B50=\"\",0,ROUND(CombineSOAverages($B50, CAS!$I$16:$I$30, CAS!$O$16:$O$30),2))","v":0},{"$f":"IF($B50=\"\",0,ROUND(CombineSOAverages($B50, CAF!$H$16:$H$35, CAF!$N$16:$N$35),2))","v":0}]
[null,{"$f":"SO!$B38","v":""},{"$f":"SO!$C38","v":""},null,null,null,null,null,null,null,null,null,null,"","","N.A.",null,null,null,null,null,null,null,null,null,null,null,null,null,null,null,null,null,null,{"$f":"IF($B51=\"\",0,ROUND(CombineSOAverages($B51, CAS!$I$16:$I$30, CAS!$O$16:$O$30),2))","v":0},{"$f":"IF($B51=\"\",0,ROUND(CombineSOAverages($B51, CAF!$H$16:$H$35, CAF!$N$16:$N$35),2))","v":0}]
[null,{"$f":"SO!$B39","v":""},{"$f":"SO!$C39","v":""},null,null,null,null,null,null,null,null,null,null,{"$f":"IF($B52=\"\",\"\",IF($AI52=0,\"\",$AI52))","v":""},{"$f":"IF($B52=\"\",\"\",IF($AJ52=0,\"\",$AJ52))","v":""},"N.A.",null,null,null,null,null,null,null,null,null,null,null,null,null,null,null,null,null,null,{"$f":"IF($B52=\"\",0,ROUND(CombineSOAverages($B52, CAS!$I$16:$I$30, CAS!$O$16:$O$30),2))","v":0},{"$f":"IF($B52=\"\",0,ROUND(CombineSOAverages($B52, CAF!$H$16:$H$35, CAF!$N$16:$N$35),2))","v":0}]
[null,{"$f":"SO!$B40","v":""},{"$f":"SO!$C40","v":""},null,null,null,null,null,null,null,null,null,null,"","","N.A.",null,null,null,null,null,null,null,null,null,null,null,null,null,null,null,null,null,null,{"$f":"IF($B53=\"\",0,ROUND(CombineSOAverages($B53, CAS!$I$16:$I$30, CAS!$O$16:$O$30),2))","v":0},{"$f":"IF($B53=\"\",0,ROUND(CombineSOAverages($B53, CAF!$H$16:$H$35, CAF!$N$16:$N$35),2))","v":0}]
[null,{"$f":"SO!$B41","v":""},{"$f":"SO!$C41","v":""},null,null,null,null,null,null,null,null,null,null,"","","N.A.",null,null,null,null,null,null,null,null,null,null,null,null,null,null,null,null,null,null,{"$f":"IF($B54=\"\",0,ROUND(CombineSOAverages($B54, CAS!$I$16:$I$30, CAS!$O$16:$O$30),2))","v":0},{"$f":"IF($B54=\"\",0,ROUND(CombineSOAverages($B54, CAF!$H$16:$H$35, CAF!$N$16:$N$35),2))","v":0}]
[null,{"$f":"SO!$B42","v":""},{"$f":"SO!$C42","v":""},null,null,null,null,null,null,null,null,null,null,"","","N.A.",null,null,null,null,null,null,null,null,null,null,null,null,null,null,null,null,null,null,{"$f":"IF($B55=\"\",0,ROUND(CombineSOAverages($B55, CAS!$I$16:$I$30, CAS!$O$16:$O$30),2))","v":0},{"$f":"IF($B55=\"\",0,ROUND(CombineSOAverages($B55, CAF!$H$16:$H$35, CAF!$N$16:$N$35),2))","v":0}]
[null,{"$f":"SO!$B43","v":""},{"$f":"SO!$C43","v":""},null,null,null,null,null,null,null,null,null,null,"","","N.A.",null,null,null,null,null,null,null,null,null,null,null,null,null,null,null,null,null,null,{"$f":"IF($B56=\"\",0,ROUND(CombineSOAverages($B56, CAS!$I$16:$I$30, CAS!$O$16:$O$30),2))","v":0},{"$f":"IF($B56=\"\",0,ROUND(CombineSOAverages($B56, CAF!$H$16:$H$35, CAF!$N$16:$N$35),2))","v":0}]
[null,{"$f":"SO!$B44","v":""},{"$f":"SO!$C44","v":""},null,null,null,null,null,null,null,null,null,null,"","","N.A.",null,null,null,null,null,null,null,null,null,null,null,null,null,null,null,null,null,null,{"$f":"IF($B57=\"\",0,ROUND(CombineSOAverages($B57, CAS!$I$16:$I$30, CAS!$O$16:$O$30),2))","v":0},{"$f":"IF($B57=\"\",0,ROUND(CombineSOAverages($B57, CAF!$H$16:$H$35, CAF!$N$16:$N$35),2))","v":0}]
[null,{"$f":"SO!$B45","v":""},{"$f":"SO!$C45","v":""},null,null,null,null,null,null,null,null,null,null,"","","N.A.",null,null,null,null,null,null,null,null,null,null,null,null,null,null,null,null,null,null,{"$f":"IF($B58=\"\",0,ROUND(CombineSOAverages($B58, CAS!$I$16:$I$30, CAS!$O$16:$O$30),2))","v":0},{"$f":"IF($B58=\"\",0,ROUND(CombineSOAverages($B58, CAF!$H$16:$H$35, CAF!$N$16:$N$35),2))","v":0}]
[null,{"$f":"SO!$B46","v":""},{"$f":"SO!$C46","v":""},null,null,null,null,null,null,null,null,null,null,"","","N.A.",null,null,null,null,null,null,null,null,null,null,null,null,null,null,null,null,null,null,{"$f":"IF($B59=\"\",0,ROUND(CombineSOAverages($B59, CAS!$I$16:$I$30, CAS!$O$16:$O$30),2))","v":0},{"$f":"IF($B59=\"\",0,ROUND(CombineSOAverages($B59, CAF!$H$16:$H$35, CAF!$N$16:$N$35),2))","v":0}]
[null,{"$f":"SO!$B47","v":""},{"$f":"SO!$C47","v":""},null,null,null,null,null,null,null,null,null,null,"","","N.A.",null,null,null,null,null,null,null,null,null,null,null,null,null,null,null,null,null,null,{"$f":"IF($B60=\"\",0,ROUND(CombineSOAverages($B60, CAS!$I$16:$I$30, CAS!$O$16:$O$30),2))","v":0},{"$f":"IF($B60=\"\",0,ROUND(CombineSOAverages($B60, CAF!$H$16:$H$35, CAF!$N$16:$N$35),2))","v":0}]
[null,{"$f":"SO!$B48","v":""},{"$f":"SO!$C48","v":""},null,null,null,null,null,null,null,null,null,null,"","","N.A.",null,null,null,null,null,null,null,null,null,null,null,null,null,null,null,null,null,null,{"$f":"IF($B61=\"\",0,ROUND(CombineSOAverages($B61, CAS!$I$16:$I$30, CAS!$O$16:$O$30),2))","v":0},{"$f":"IF($B61=\"\",0,ROUND(CombineSOAverages($B61, CAF!$H$16:$H$35, CAF!$N$16:$N$35),2))","v":0}]
[null,{"$f":"SO!$B49","v":""},{"$f":"SO!$C49","v":""},null,null,null,null,null,null,null,null,null,null,"","","N.A.",null,null,null,null,null,null,null,null,null,null,null,null,null,null,null,null,null,null,{"$f":"IF($B62=\"\",0,ROUND(CombineSOAverages($B62, CAS!$I$16:$I$30, CAS!$O$16:$O$30),2))","v":0},{"$f":"IF($B62=\"\",0,ROUND(CombineSOAverages($B62, CAF!$H$16:$H$35, CAF!$N$16:$N$35),2))","v":0}]
[null,{"$f":"SO!$B50","v":""},{"$f":"SO!$C50","v":""},null,null,null,null,null,null,null,null,null,null,"","","N.A.",null,null,null,null,null,null,null,null,null,null,null,null,null,null,null,null,null,null,{"$f":"IF($B63=\"\",0,ROUND(CombineSOAverages($B63, CAS!$I$16:$I$30, CAS!$O$16:$O$30),2))","v":0},{"$f":"IF($B63=\"\",0,ROUND(CombineSOAverages($B63, CAF!$H$16:$H$35, CAF!$N$16:$N$35),2))","v":0}]
[null,{"$f":"SO!$B51","v":""},{"$f":"SO!$C51","v":""},null,null,null,null,null,null,null,null,null,null,"","","N.A.",null,null,null,null,null,null,null,null,null,null,null,null,null,null,null,null,null,null,{"$f":"IF($B64=\"\",0,ROUND(CombineSOAverages($B64, CAS!$I$16:$I$30, CAS!$O$16:$O$30),2))","v":0},{"$f":"IF($B64=\"\",0,ROUND(CombineSOAverages($B64, CAF!$H$16:$H$35, CAF!$N$16:$N$35),2))","v":0}]
[null,{"$f":"SO!$B52","v":""},{"$f":"SO!$C52","v":""},null,null,null,null,null,null,null,null,null,null,"","","N.A.",null,null,null,null,null,null,null,null,null,null,null,null,null,null,null,null,null,null,{"$f":"IF($B65=\"\",0,ROUND(CombineSOAverages($B65, CAS!$I$16:$I$30, CAS!$O$16:$O$30),2))","v":0},{"$f":"IF($B65=\"\",0,ROUND(CombineSOAverages($B65, CAF!$H$16:$H$35, CAF!$N$16:$N$35),2))","v":0}]
[null,{"$f":"SO!$B53","v":""},{"$f":"SO!$C53","v":""},null,null,null,null,null,null,null,null,null,null,"","","N.A.",null,null,null,null,null,null,null,null,null,null,null,null,null,null,null,null,null,null,{"$f":"IF($B66=\"\",0,ROUND(CombineSOAverages($B66, CAS!$I$16:$I$30, CAS!$O$16:$O$30),2))","v":0},{"$f":"IF($B66=\"\",0,ROUND(CombineSOAverages($B66, CAF!$H$16:$H$35, CAF!$N$16:$N$35),2))","v":0}]
[null,{"$f":"SO!$B54","v":""},{"$f":"SO!$C54","v":""},null,null,null,null,null,null,null,null,null,null,"","","N.A.",null,null,null,null,null,null,null,null,null,null,null,null,null,null,null,null,null,null,{"$f":"IF($B67=\"\",0,ROUND(CombineSOAverages($B67, CAS!$I$16:$I$30, CAS!$O$16:$O$30),2))","v":0},{"$f":"IF($B67=\"\",0,ROUND(CombineSOAverages($B67, CAF!$H$16:$H$35, CAF!$N$16:$N$35),2))","v":0}]
[null,{"$f":"SO!$B55","v":""},{"$f":"SO!$C55","v":""},null,null,null,null,null,null,null,null,null,null,"","","N.A.",null,null,null,null,null,null,null,null,null,null,null,null,null,null,null,null,null,null,{"$f":"IF($B68=\"\",0,ROUND(CombineSOAverages($B68, CAS!$I$16:$I$30, CAS!$O$16:$O$30),2))","v":0},{"$f":"IF($B68=\"\",0,ROUND(CombineSOAverages($B68, CAF!$H$16:$H$35, CAF!$N$16:$N$35),2))","v":0}]
[null,{"$f":"SO!$B56","v":""},{"$f":"SO!$C56","v":""},null,null,null,null,null,null,null,null,null,null,"","","N.A.",null,null,null,null,null,null,null,null,null,null,null,null,null,null,null,null,null,null,{"$f":"IF($B69=\"\",0,ROUND(CombineSOAverages($B69, CAS!$I$16:$I$30, CAS!$O$16:$O$30),2))","v":0},{"$f":"IF($B69=\"\",0,ROUND(CombineSOAverages($B69, CAF!$H$16:$H$35, CAF!$N$16:$N$35),2))","v":0}]
[null,{"$f":"SO!$B57","v":""},{"$f":"SO!$C57","v":""},null,null,null,null,null,null,null,null,null,null,"","","N.A.",null,null,null,null,null,null,null,null,null,null,null,null,null,null,null,null,null,null,{"$f":"IF($B70=\"\",0,ROUND(CombineSOAverages($B70, CAS!$I$16:$I$30, CAS!$O$16:$O$30),2))","v":0},{"$f":"IF($B70=\"\",0,ROUND(CombineSOAverages($B70, CAF!$H$16:$H$35, CAF!$N$16:$N$35),2))","v":0}]
[null,{"$f":"SO!$B58","v":""},{"$f":"SO!$C58","v":""},null,null,null,null,null,null,null,null,null,null,"","","N.A.",null,null,null,null,null,null,null,null,null,null,null,null,null,null,null,null,null,null,{"$f":"IF($B71=\"\",0,ROUND(CombineSOAverages($B71, CAS!$I$16:$I$30, CAS!$O$16:$O$30),2))","v":0},{"$f":"IF($B71=\"\",0,ROUND(CombineSOAverages($B71, CAF!$H$16:$H$35, CAF!$N$16:$N$35),2))","v":0}]
[null,{"$f":"SO!$B59","v":""},{"$f":"SO!$C59","v":""},null,null,null,null,null,null,null,null,null,null,"","","N.A.",null,null,null,null,null,null,null,null,null,null,null,null,null,null,null,null,null,null,{"$f":"IF($B72=\"\",0,ROUND(CombineSOAverages($B72, CAS!$I$16:$I$30, CAS!$O$16:$O$30),2))","v":0},{"$f":"IF($B72=\"\",0,ROUND(CombineSOAverages($B72, CAF!$H$16:$H$35, CAF!$N$16:$N$35),2))","v":0}]
[null,{"$f":"SO!$B60","v":""},{"$f":"SO!$C60","v":""},null,null,null,null,null,null,null,null,null,null,"","","N.A.",null,null,null,null,null,null,null,null,null,null,null,null,null,null,null,null,null,null,{"$f":"IF($B73=\"\",0,ROUND(CombineSOAverages($B73, CAS!$I$16:$I$30, CAS!$O$16:$O$30),2))","v":0},{"$f":"IF($B73=\"\",0,ROUND(CombineSOAverages($B73, CAF!$H$16:$H$35, CAF!$N$16:$N$35),2))","v":0}]
[null,{"$f":"SO!$B61","v":""},{"$f":"SO!$C61","v":""},null,null,null,null,null,null,null,null,null,null,"","","N.A.",null,null,null,null,null,null,null,null,null,null,null,null,null,null,null,null,null,null,{"$f":"IF($B74=\"\",0,ROUND(CombineSOAverages($B74, CAS!$I$16:$I$30, CAS!$O$16:$O$30),2))","v":0},{"$f":"IF($B74=\"\",0,ROUND(CombineSOAverages($B74, CAF!$H$16:$H$35, CAF!$N$16:$N$35),2))","v":0}]
[null,{"$f":"SO!$B62","v":""},{"$f":"SO!$C62","v":""},null,null,null,null,null,null,null,null,null,null,"","","N.A.",null,null,null,null,null,null,null,null,null,null,null,null,null,null,null,null,null,null,{"$f":"IF($B75=\"\",0,ROUND(CombineSOAverages($B75, CAS!$I$16:$I$30, CAS!$O$16:$O$30),2))","v":0},{"$f":"IF($B75=\"\",0,ROUND(CombineSOAverages($B75, CAF!$H$16:$H$35, CAF!$N$16:$N$35),2))","v":0}]
[null,{"$f":"SO!$B63","v":""},{"$f":"SO!$C63","v":""},null,null,null,null,null,null,null,null,null,null,"","","N.A.",null,null,null,null,null,null,null,null,null,null,null,null,null,null,null,null,null,null,{"$f":"IF($B76=\"\",0,ROUND(CombineSOAverages($B76, CAS!$I$16:$I$30, CAS!$O$16:$O$30),2))","v":0},{"$f":"IF($B76=\"\",0,ROUND(CombineSOAverages($B76, CAF!$H$16:$H$35, CAF!$N$16:$N$35),2))","v":0}]
[null,{"$f":"SO!$B64","v":""},{"$f":"SO!$C64","v":""},null,null,null,null,null,null,null,null,null,null,"","","N.A.",null,null,null,null,null,null,null,null,null,null,null,null,null,null,null,null,null,null,{"$f":"IF($B77=\"\",0,ROUND(CombineSOAverages($B77, CAS!$I$16:$I$30, CAS!$O$16:$O$30),2))","v":0},{"$f":"IF($B77=\"\",0,ROUND(CombineSOAverages($B77, CAF!$H$16:$H$35, CAF!$N$16:$N$35),2))","v":0}]
[null,{"$f":"SO!$B65","v":""},{"$f":"SO!$C65","v":""},null,null,null,null,null,null,null,null,null,null,"","","N.A.",null,null,null,null,null,null,null,null,null,null,null,null,null,null,null,null,null,null,{"$f":"IF($B78=\"\",0,ROUND(CombineSOAverages($B78, CAS!$I$16:$I$30, CAS!$O$16:$O$30),2))","v":0},{"$f":"IF($B78=\"\",0,ROUND(CombineSOAverages($B78, CAF!$H$16:$H$35, CAF!$N$16:$N$35),2))","v":0}]
[]
[null,"Student actual grade distribution in this class:"]
[null,"A","A-","B+","B","B-","C+","C","C-","D+","D","D-","F","Average","Avg. Scaled"]
[null,5,1,7,8,6,5,4,4,5,2,2,3,{"$f":"IF($M$82=\"\",\"\",ROUND(($B$82*4+$C$82*3.75+$D$82*3.5+$E$82*3+$F$82*2.75+$G$82*2.5+$H$82*2+$I$82*1.75+$J$82*1.5+$K$82*1.25+$L$82*1+$M$82*0.5)/SUM(B82:M82),2))","v":2.5},{"$f":"IF($M$82=\"\",\"\",ROUND($N$82*5/4,2))","v":3.13}]
[null,null,null,null,null,null,null,null,null,null,null,null,null,"[out of 4.0]","[scaled to 5.0]"]
[]
[null,"Instructor's recommendations:",null,null,null,null,null,null,null,null,null,null,null,null,"Date:"]
[]
[]
[]
[]
[]
[null,"Focus group or ABET committee recommendations:",null,null,null,null,null,null,null,null,null,null,null,null,"Date:"]
[]
[]
[]
[]
[]
[null,"Changes or corrective action taken (if necessary):",null,null,null,null,null,null,null,null,null,null,null,null,"Date:"]

{"sheet":"Samples","index":7,"n_rows":41,"n_cols":34,"rows_kept":41,"cut":false,"hidden":false,"merged":[]}
[]
[]
[null,"Course Support Material"]
[null,null,null,null,null,null,null,null,null,null,null,null,null,null,null,null,null,null,null,null,null,null,null,null,null,null,null,null,null,null,null,null,null,"No material available"]
[null,"IMPORTANT NOTE:",null,null,null,null,null,null,null,null,null,null,null,null,null,null,null,null,null,null,null,null,null,null,null,null,null,null,null,null,null,null,null,"Material uploaded here"]
[null,"You can upload in this sheet material used in support of this course. Please be advised that this is NOT a secure location for your material.",null,null,null,null,null,null,null,null,null,null,null,null,null,null,null,null,null,null,null,null,null,null,null,null,null,null,null,null,null,null,null,"Material placed in department course file"]
[null,"Hence, upload only insensitive information (e.g. publicly available lecture notes, exams already handed out to students, etc)."]
[null,"For sensitive information (e.g., copyrighted material, exam problems that are not published, student wrong answers, etc), do NOT upload"]
[null,"them here, rather place that material within the paper-based course file in the department at a secure location, and indicate this fact here."]
[null,"Nor the developer, nor the university, is responsible for any leak of information you upload to this file. It is fully YOUR responsibility."]
[]
[]
[null,null,null,null,null,null,null,null,"* First click on the cell you want to load"]
[null,null,null,null,null,null,null,null,"the file into, then click on this button."]
[]
[]
[null,"Lecture notes, handouts,",null,null,null,null,null,"Assessment problems (with KEY answers):",null,null,null,null,null,"Samples of student answers for these assessment problems:"]
[null,"datasheets, etc:",null,null,null,null,null,"(exams, quizzes, projects, homeworks, etc)",null,null,null,null,null,"High","Avg","Low grade"]
[]
[]
[]
[null,null,"N1","N2",null,null,null,null,"P1","K1",null,null,null,"H1","M1","L1"]
[null,null,"N3","N4",null,null,null,null,"P2","K2",null,null,null,"H2","M2","L2"]
[null,null,"N5","N6",null,null,null,null,"P3","K3",null,null,null,"H3","M3","L3"]
[null,null,"N7","N8",null,null,null,null,"P4","K4",null,null,null,"H4","M4","L4"]
[null,null,"N9","N10",null,null,null,null,"P5","K5",null,null,null,"H5","M5","L5"]
[null,null,"N11","N12",null,null,null,null,"P6","K6",null,null,null,"H6","M6","L6"]
[null,null,"N13","N14",null,null,null,null,"P7","K7",null,null,null,"H7","M7","L7"]
[null,null,"N15","N16",null,null,null,null,"P8","K8",null,null,null,"H8","M8","L8"]
[null,null,"N17","N18",null,null,null,null,"P9","K9",null,null,null,"H9","M9","L9"]
[null,null,"N19","N20",null,null,null,null,"P10","K10",null,null,null,"H10","M10","L10"]
[null,null,"N21","N22",null,null,null,null,"P11","K11",null,null,null,"H11","M11","L11"]
[null,null,"N23","N24",null,null,null,null,"P12","K12",null,null,null,"H12","M12","L12"]
[null,null,"N25","N26",null,null,null,null,"P13","K13",null,null,null,"H13","M13","L13"]
[null,null,"N27","N28",null,null,null,null,"P14","K14",null,null,null,"H14","M14","L14"]
[null,null,"N29","N30",null,null,null,null,"P15","K15",null,null,null,"H15","M15","L15"]
[null,null,"N31","N32",null,null,null,null,"P16","K16",null,null,null,"H16","M16","L16"]
[null,null,"N33","N34",null,null,null,null,"P17","K17",null,null,null,"H17","M17","L17"]
[null,null,"N35","N36",null,null,null,null,"P18","K18",null,null,null,"H18","M18","L18"]
[null,null,"N37","N38",null,null,null,null,"P19","K19",null,null,null,"H19","M19","L19"]
[null,null,"N39","N40",null,null,null,null,"P20","K20",null,null,null,"H20","M20","L20"]

{"sheet":"N2","index":8,"n_rows":118,"n_cols":14,"rows_kept":118,"cut":false,"hidden":false,"merged":[[99,2,99,11],[100,2,100,11],[101,2,101,11],[102,2,102,11],[103,2,103,11],[104,2,104,11],[90,2,90,11],[91,2,91,11],[92,2,92,11],[93,2,93,11],[94,2,94,11],[95,2,95,11],[96,2,96,11],[97,2,97,11],[98,2,98,11],[81,12,82,13],[89,12,90,13],[97,12,98,13],[107,1,107,8],[107,9,108,9],[107,10,108,13],[67,5,67,10],[68,5,68,10],[69,5,69,10],[67,3,67,4],[67,1,67,2],[68,1,68,2],[68,3,68,4],[69,3,69,4],[69,1,69,2],[106,1,106,13],[82,2,82,11],[83,2,83,11],[84,2,84,11],[85,2,85,11],[86,2,86,11],[87,2,87,11],[88,2,88,11],[89,2,89,11],[65,5,65,10],[65,3,65,4],[65,1,65,2],[66,1,66,2],[66,3,66,4],[66,5,66,10],[63,5,63,10],[63,3,63,4],[63,1,63,2],[64,1,64,2],[64,3,64,4],[64,5,64,10],[61,5,61,10],[61,1,61,2],[62,1,62,2],[62,3,62,4],[61,3,61,4],[62,5,62,10],[59,5,59,10],[59,3,59,4],[59,1,59,2],[60,1,60,2],[60,3,60,4],[60,5,60,10],[58,1,58,2],[58,3,58,4],[58,5,58,10],[55,5,55,10],[55,3,55,4],[55,1,55,2],[56,1,56,2],[56,3,56,4],[56,5,56,10],[29,12,29,13],[36,2,36,11],[36,12,36,13],[50,3,50,4],[49,3,49,4],[50,5,50,10],[35,2,35,11],[35,12,35,13],[34,12,34,13],[33,12,33,13],[32,12,32,13],[31,12,31,13],[29,2,29,11],[30,2,30,11],[31,2,31,11],[32,2,32,11],[33,2,33,11],[34,2,34,11],[49,1,49,2],[42,1,42,13],[48,1,48,13],[30,12,30,13],[49,5,49,10],[5,4,6,5],[28,2,28,11],[7,1,7,3],[22,12,22,13],[23,12,23,13],[24,12,24,13],[22,2,22,11],[23,2,23,11],[24,2,24,11],[14,1,14,13],[15,1,15,13],[17,1,17,13],[18,1,18,13],[20,1,20,13],[21,1,21,13],[25,12,25,13],[26,12,26,13],[27,12,27,13],[25,2,25,11],[26,2,26,11],[28,12,28,13],[27,2,27,11],[1,1,1,13],[4,6,4,11],[4,1,4,3],[3,1,3,11],[5,10,6,11],[8,10,8,11],[76,2,76,11],[77,2,77,11],[78,2,78,11],[37,1,37,13],[5,6,6,8],[7,6,7,8],[7,10,7,11],[11,10,11,11],[12,10,12,11],[9,10,10,11],[5,1,5,3],[6,1,6,3],[11,1,11,3],[12,1,12,3],[12,6,12,8],[8,1,8,8],[9,1,10,8],[11,6,11,8],[79,2,79,11],[80,2,80,11],[81,2,81,11],[50,1,50,2],[71,1,71,13],[72,1,72,11],[73,2,73,11],[74,2,74,11],[75,2,75,11],[51,1,51,2],[51,3,51,4],[51,5,51,10],[52,1,52,2],[52,3,52,4],[52,5,52,10],[53,5,53,10],[53,3,53,4],[53,1,53,2],[54,1,54,2],[54,3,54,4],[54,5,54,10],[57,5,57,10],[57,3,57,4],[57,1,57,2]]}
[]
[null,"نموذج رقم (2): وصف المقرر"]
[]
[null,{"$f":"Cover!B3","v":"School of Engineering"},null,null,null,null,null,null,null,null,null,null,null,"الكلية"]
[null,{"$f":"SO!G2","v":7},null,null,null,"المستوى",{"$f":"Cover!B4","v":"Electrical Engineering Department"},null,null,null,null,null,null,"القسم"]
[null,{"$f":"IF(ISTEXT(Syllabus!E15),Syllabus!E15,\"\")","v":"0963321"},null,null,"المتطلب السابق",null,{"$f":"Cover!F17","v":"0953421"},null,null,"الرمز",{"$f":"Cover!F18","v":"Communications (I)"},null,null,"اسم المقرر"]
[null,{"$f":"IF(ISTEXT(Syllabus!E16),\"& \" & Syllabus!E16,\"\")","v":""}]
[null,{"$f":"Cover!O21","v":0},null,null,null,"عملي",{"$f":"Cover!O20","v":3},null,null,"نظري",{"$f":"Cover!F19","v":"3"},null,null,"ساعة معتمدة"]
[null,"First email below",null,null,null,null,null,null,null,"الإيميل","First instructor below",null,null,"منسق المقرر"]
[null,{"$f":"Cover!H27","v":"hawa@ju.edu.jo"},null,null,null,null,null,null,null,"الإيميلات",{"$f":"Cover!F26","v":"Prof. Mohammed Hawa"},null,null,"المدرسون"]
[]
[null,{"$f":"Syllabus!D29","v":"On Campus"},null,null,null,"الحضور",null,null,null,"المكان",null,null,null,"وقت المحاضرة"]
[null,{"$f":"Syllabus!D79","v":"Feb 2024"},null,null,null,"آخر تعديل",{"$f":"Cover!O24","v":"Sep 2022"},null,null,"تاريخ الإعداد",{"$f":"CONCATENATE(Cover!F24, \" Semester \", Cover!F23)","v":"1st Semester 2024/2025"},null,null,"الفصل"]
[]
[null,"وصف المقرر المختصر"]
[null,{"$f":"Syllabus!D14","v":"Classification of communication systems. Channel impairments: attenuation, distortion, noise, etc. Continuous-wave (CW) modulation. Double Sideband Suppressed Carrier (DSB-SC), Amplitude Modulation (AM) and Quadrature Amplitude Modulation (QAM). Bandwidth. Mixers. Coherent detection and effects of frequency/phase errors. Frequency Modulation (FM) and Phase Modulation (PM). AM and FM transmitters, receivers and radio broadcasting. Noise sources and noise representation in CW modulation. Signal-to-Noise Ratio (SNR) calculations. Frequency Division Multiplexing (FDM) and Time Division Multiplexing (TDM). Introduction to baseband transmission: sampling, quantization, line coding, and pulse shaping. Introduction to digital modulation techniques: ASK, FSK, PSK and QPSK. Introduction to performance of digital modulation schemes in the presence of noise."}]
[]
[null,"أهداف المقرر"]
[null,{"$f":"Syllabus!D30","v":"The overall objective is to introduce the student to the basics of communications theory. This course emphasizes:\n• Analog modulation and demodulation techniques.\n• Performance evaluation of communication systems in the presence of noise.\n• Modern trends in communication systems."}]
[]
[null,"مخرجات التعلم CILOs"]
[null,"التصنيف: المعرفة (K)، المهارات (S)، الكفايات (C)"]
[null,"1.",{"$f":"IF(ISTEXT(Syllabus!C34), Syllabus!C34, \"\")","v":"Understand the theory behind amplitude, frequency and phase modulation techniques."},null,null,null,null,null,null,null,null,null,{"$f":"MapSOToNational(Syllabus!K34,SO!$B$7:$B$65,SO!$G$7:$K$65)","v":"[K1]"}]
[null,"2.",{"$f":"IF(ISTEXT(Syllabus!C35), Syllabus!C35, \"\")","v":"Become familiar with the performance measures used in conjunction with communication systems including required channel bandwidth and signal-to-noise ratio (SNR)."},null,null,null,null,null,null,null,null,null,{"$f":"MapSOToNational(Syllabus!K35,SO!$B$7:$B$65,SO!$G$7:$K$65)","v":"[K1]"}]
[null,"3.",{"$f":"IF(ISTEXT(Syllabus!C36), Syllabus!C36, \"\")","v":"Be able to identify the different parts of AM and FM transmitters and receivers."},null,null,null,null,null,null,null,null,null,{"$f":"MapSOToNational(Syllabus!K36,SO!$B$7:$B$65,SO!$G$7:$K$65)","v":"[K1]"}]
[null,"4.",{"$f":"IF(ISTEXT(Syllabus!C37), Syllabus!C37, \"\")","v":"Learn how FDM and TDM multiplexing systems work."},null,null,null,null,null,null,null,null,null,{"$f":"MapSOToNational(Syllabus!K37,SO!$B$7:$B$65,SO!$G$7:$K$65)","v":"[K1]"}]
[null,"5.",{"$f":"IF(ISTEXT(Syllabus!C38), Syllabus!C38, \"\")","v":"Become familiar with digital modulation techniques: ASK, FSK, PSK & QPSK."},null,null,null,null,null,null,null,null,null,{"$f":"MapSOToNational(Syllabus!K38,SO!$B$7:$B$65,SO!$G$7:$K$65)","v":"[K1]"}]
[null,"6.",{"$f":"IF(ISTEXT(Syllabus!C39), Syllabus!C39, \"\")","v":"Be able to identify design choices in contemporary communication systems, such as: satellite systems, landline and cellular telephony, wireless networks, television and radio broadcasting systems."},null,null,null,null,null,null,null,null,null,{"$f":"MapSOToNational(Syllabus!K39,SO!$B$7:$B$65,SO!$G$7:$K$65)","v":"[K1]"}]
[null,"7.",{"$f":"IF(ISTEXT(Syllabus!C40), Syllabus!C40, \"\")","v":""},null,null,null,null,null,null,null,null,null,{"$f":"MapSOToNational(Syllabus!K40,SO!$B$7:$B$65,SO!$G$7:$K$65)","v":""}]
[null,"8.",{"$f":"IF(ISTEXT(Syllabus!C41), Syllabus!C41, \"\")","v":""},null,null,null,null,null,null,null,null,null,{"$f":"MapSOToNational(Syllabus!K41,SO!$B$7:$B$65,SO!$G$7:$K$65)","v":""}]
[null,"9.",{"$f":"IF(ISTEXT(Syllabus!C42), Syllabus!C42, \"\")","v":""},null,null,null,null,null,null,null,null,null,{"$f":"MapSOToNational(Syllabus!K42,SO!$B$7:$B$65,SO!$G$7:$K$65)","v":""}]
[null,"10.",{"$f":"IF(ISTEXT(Syllabus!C43), Syllabus!C43, \"\")","v":""},null,null,null,null,null,null,null,null,null,{"$f":"MapSOToNational(Syllabus!K43,SO!$B$7:$B$65,SO!$G$7:$K$65)","v":""}]
[null,"11.",{"$f":"IF(ISTEXT(Syllabus!C44), Syllabus!C44, \"\")","v":""},null,null,null,null,null,null,null,null,null,{"$f":"MapSOToNational(Syllabus!K44,SO!$B$7:$B$65,SO!$G$7:$K$65)","v":""}]
[null,"12.",{"$f":"IF(ISTEXT(Syllabus!C45), Syllabus!C45, \"\")","v":""},null,null,null,null,null,null,null,null,null,{"$f":"MapSOToNational(Syllabus!K45,SO!$B$7:$B$65,SO!$G$7:$K$65)","v":""}]
[null,"13.",{"$f":"IF(ISTEXT(Syllabus!C46), Syllabus!C46, \"\")","v":""},null,null,null,null,null,null,null,null,null,{"$f":"MapSOToNational(Syllabus!K46,SO!$B$7:$B$65,SO!$G$7:$K$65)","v":""}]
[null,"14.",{"$f":"IF(ISTEXT(Syllabus!C47), Syllabus!C47, \"\")","v":""},null,null,null,null,null,null,null,null,null,{"$f":"MapSOToNational(Syllabus!K47,SO!$B$7:$B$65,SO!$G$7:$K$65)","v":""}]
[null,"15.",{"$f":"IF(ISTEXT(Syllabus!C48), Syllabus!C48, \"\")","v":""},null,null,null,null,null,null,null,null,null,{"$f":"MapSOToNational(Syllabus!K48,SO!$B$7:$B$65,SO!$G$7:$K$65)","v":""}]
[null,"طرق التعليم والتعلم"]
[null,"1.","Classroom lectures",null,null,null,null,null,null,"5.","Experiments"]
[null,"2.","Online resources",null,null,null,null,null,null,"6.","Project"]
[null,"3.","Question & Answer",null,null,null,null,null,null,"7.","Brainstorming"]
[null,"4.","Group discussions ",null,null,null,null,null,null,"8.","Discovery"]
[null,"أدوات التقييم"]
[null,"1.",{"$f":"Syllabus!D74","v":"First Exam"},null,null,null,null,{"$f":"IF(Syllabus!G74 > 0,\"þ\",\"¨\")","v":"þ"},null,"5.",{"$f":"Syllabus!I74","v":"Assignments"},null,{"$f":"IF(Syllabus!K74 > 0,\"þ\",\"¨\")","v":"¨"}]
[null,"2.",{"$f":"Syllabus!D75","v":"Midterm Exam"},null,null,null,null,{"$f":"IF(Syllabus!G75 > 0,\"þ\",\"¨\")","v":"þ"},null,"6.",{"$f":"Syllabus!I75","v":"Projects"},null,{"$f":"IF(Syllabus!K75 > 0,\"þ\",\"¨\")","v":"¨"}]
[null,"3.",{"$f":"Syllabus!D76","v":"Final Exam"},null,null,null,null,{"$f":"IF(Syllabus!G76 > 0,\"þ\",\"¨\")","v":"þ"},null,"7.",{"$f":"Syllabus!I76","v":"Lab Reports"},null,{"$f":"IF(Syllabus!K76 > 0,\"þ\",\"¨\")","v":"¨"}]
[null,"4.",{"$f":"Syllabus!D77","v":"Quizzes"},null,null,null,null,{"$f":"IF(Syllabus!G77 > 0,\"þ\",\"¨\")","v":"¨"},null,"8.",{"$f":"Syllabus!I77","v":"Presentation"},null,{"$f":"IF(Syllabus!K77 > 0,\"þ\",\"¨\")","v":"¨"}]
[]
[null,"محتوى المقرر"]
[null,"أدوات التقييم",null,"طرق التعليم والتعلم",null,"المواضيع",null,null,null,null,null,"مخرجات","ساعات"]
[null,"[1, 2, 3]",null,"[1, 2, 3, 8]",null,{"$f":"IF(ISTEXT(Syllabus!C51), Syllabus!C51, \"\")","v":"Channel impairments: attenuation, distortion and noise. Noise sources/characteristics."},null,null,null,null,null,"[K1]",{"$f":"IF(ISTEXT(Syllabus!C51), Syllabus!L51, \"\")","v":4},"1."]
[null,"[1, 2, 3]",null,"[1, 2, 3, 8]",null,{"$f":"IF(ISTEXT(Syllabus!C52), Syllabus!C52, \"\")","v":"Classification of communication systems (analog and digital, baseband and carrier). Communication system block diagram."},null,null,null,null,null,"[K1]",{"$f":"IF(ISTEXT(Syllabus!C52), Syllabus!L52, \"\")","v":2},"2."]
[null,"[1, 2, 3]",null,"[1, 2, 3, 8]",null,{"$f":"IF(ISTEXT(Syllabus!C53), Syllabus!C53, \"\")","v":"(Handout) Signal Analysis Review: time and frequency domains, Fourier series and transform, spectral densities, RMS, average power, dBm levels, filters."},null,null,null,null,null,"[K1]",{"$f":"IF(ISTEXT(Syllabus!C53), Syllabus!L53, \"\")","v":3},"3."]
[null,"[1, 2, 3]",null,"[1, 2, 3, 8]",null,{"$f":"IF(ISTEXT(Syllabus!C54), Syllabus!C54, \"\")","v":"Double Sideband Suppressed Carrier (DSB-SC) Modulation/Demodulation. Mixers, coherent detection and frequence/phase errors. Circuits: Gilbert Cell, Switching modulator/demodulator."},null,null,null,null,null,"[K1]",{"$f":"IF(ISTEXT(Syllabus!C54), Syllabus!L54, \"\")","v":5},"4."]
[null,"[2, 3]",null,"[1, 2, 3, 8]",null,{"$f":"IF(ISTEXT(Syllabus!C55), Syllabus!C55, \"\")","v":"(Handout) Introduction to baseband digital transmission: sampling of signals, quantization, line coding and pulse shaping."},null,null,null,null,null,"[K1]",{"$f":"IF(ISTEXT(Syllabus!C55), Syllabus!L55, \"\")","v":3},"5."]
[null,"[2, 3]",null,"[1, 2, 3, 8]",null,{"$f":"IF(ISTEXT(Syllabus!C56), Syllabus!C56, \"\")","v":"Quadrature Amplitude Modulation (QAM) and Vestigial Sideband (VSB). Analog TV broadcasting standards."},null,null,null,null,null,"[K1]",{"$f":"IF(ISTEXT(Syllabus!C56), Syllabus!L56, \"\")","v":3},"6."]
[null,"[2, 3]",null,"[1, 2, 3, 8]",null,{"$f":"IF(ISTEXT(Syllabus!C57), Syllabus!C57, \"\")","v":"Frequency conversion (heterodyning)."},null,null,null,null,null,"[K1]",{"$f":"IF(ISTEXT(Syllabus!C57), Syllabus!L57, \"\")","v":1},"7."]
[null,"[2, 3]",null,"[1, 2, 3, 8]",null,{"$f":"IF(ISTEXT(Syllabus!C58), Syllabus!C58, \"\")","v":"AM Modulation/Demodulation. AM modulation index and power efficiency. Circuits: Modulators, demodulators, envelope detector, synchronous detector."},null,null,null,null,null,"[K1]",{"$f":"IF(ISTEXT(Syllabus!C58), Syllabus!L58, \"\")","v":4},"8."]
[null,"[2, 3]",null,"[1, 2, 3, 8]",null,{"$f":"IF(ISTEXT(Syllabus!C59), Syllabus!C59, \"\")","v":"Frequency division multiplexing (FDM) and FDMA. The Superheterodyne receiver. \nAM radio broadcasting.\n"},null,null,null,null,null,"[K1]",{"$f":"IF(ISTEXT(Syllabus!C59), Syllabus!L59, \"\")","v":2},"9."]
[null,"[2, 3]",null,"[1, 2, 3, 8]",null,{"$f":"IF(ISTEXT(Syllabus!C60), Syllabus!C60, \"\")","v":"Noise representation (AWGN noise). Performance of analog communication systems in the presence of noise, Signal-to-Noise Ratio (SNR) for DSB-SC and AM."},null,null,null,null,null,"[K1]",{"$f":"IF(ISTEXT(Syllabus!C60), Syllabus!L60, \"\")","v":4},"10."]
[null,"[3]",null,"[1, 2, 3, 8]",null,{"$f":"IF(ISTEXT(Syllabus!C61), Syllabus!C61, \"\")","v":"Frequency Modulation (FM) and Phase Modulation (PM):  time-domain representation, bandwdith estimation (Carson’s rule), Narrowband and Wideband FM, FM and PM advantages/disadvantages and applications. SNR of FM signals. FM radio broadcasting."},null,null,null,null,null,"[K1]",{"$f":"IF(ISTEXT(Syllabus!C61), Syllabus!L61, \"\")","v":5},"11."]
[null,"[3]",null,"[1, 2, 3, 8]",null,{"$f":"IF(ISTEXT(Syllabus!C62), Syllabus!C62, \"\")","v":"Time division multiplexing (TDM) and TDMA. Telephony and Pulse Cod Modulation (PCM)."},null,null,null,null,null,"[K1]",{"$f":"IF(ISTEXT(Syllabus!C62), Syllabus!L62, \"\")","v":2},"12."]
[null,"[3]",null,"[1, 2, 3, 8]",null,{"$f":"IF(ISTEXT(Syllabus!C63), Syllabus!C63, \"\")","v":"(Handout) Introduction to Digital Modulation techniques: Amplitude Shift Keying (ASK), Frequency Shift Keying (FSK), Phase Shift Keying (PSK), Quadrature Phase Shift Keying (QPSK) and Quadrature Amplitude Modulation (QAM). Performance Analysis."},null,null,null,null,null,"[K1]",{"$f":"IF(ISTEXT(Syllabus!C63), Syllabus!L63, \"\")","v":2},"13."]
[null,null,null,null,null,{"$f":"IF(ISTEXT(Syllabus!C64), Syllabus!C64, \"\")","v":""},null,null,null,null,null,null,{"$f":"IF(ISTEXT(Syllabus!C64), Syllabus!L64, \"\")","v":""},"14."]
[null,null,null,null,null,{"$f":"IF(ISTEXT(Syllabus!C65), Syllabus!C65, \"\")","v":""},null,null,null,null,null,null,{"$f":"IF(ISTEXT(Syllabus!C65), Syllabus!L65, \"\")","v":""},"15."]
[null,null,null,null,null,{"$f":"IF(ISTEXT(Syllabus!C66), Syllabus!C66, \"\")","v":""},null,null,null,null,null,null,{"$f":"IF(ISTEXT(Syllabus!C66), Syllabus!L66, \"\")","v":""},"16."]
[null,null,null,null,null,{"$f":"IF(ISTEXT(Syllabus!C67), Syllabus!C67, \"\")","v":""},null,null,null,null,null,null,{"$f":"IF(ISTEXT(Syllabus!C67), Syllabus!L67, \"\")","v":""},"17."]
[null,null,null,null,null,{"$f":"IF(ISTEXT(Syllabus!C68), Syllabus!C68, \"\")","v":""},null,null,null,null,null,null,{"$f":"IF(ISTEXT(Syllabus!C68), Syllabus!L68, \"\")","v":""},"18."]
[null,null,null,null,null,{"$f":"IF(ISTEXT(Syllabus!C69), Syllabus!C69, \"\")","v":""},null,null,null,null,null,null,{"$f":"IF(ISTEXT(Syllabus!C69), Syllabus!L69, \"\")","v":""},"19."]
[null,null,null,null,null,{"$f":"IF(ISTEXT(Syllabus!C70), Syllabus!C70, \"\")","v":""},null,null,null,null,null,null,{"$f":"IF(ISTEXT(Syllabus!C70), Syllabus!L70, \"\")","v":""},"20."]
[]
[null,"المكونات"]
[null,{"$f":"Syllabus!D19","v":"Modern Digital and Analog Communications Systems by B. P. Lathi and Zhi Ding, Oxford University Press, 5th Edition, 2018."},null,null,null,null,null,null,null,null,null,null,null,"الكتاب"]
[null,"1.",{"$f":"IF(ISTEXT(Syllabus!E20), Syllabus!E20, \"\")","v":"Fundamentals of Communication Systems by John G. Proakis and Masoud Salehi, Prentice Hall, 2nd Edition, 2013."},null,null,null,null,null,null,null,null,null,null,"المراجع"]
[null,"2.",{"$f":"IF(ISTEXT(Syllabus!E21), Syllabus!E21, \"\")","v":"Analog and Digital Communications (Schaum's Outlines) by Hwei P. Hsu, McGraw-Hill, 2nd Edition, 2002."}]
[null,"3.",{"$f":"IF(ISTEXT(Syllabus!E22), Syllabus!E22, \"\")","v":"Digital and Analog Communication Systems by Leon W. Couch, Prentice Hall, 8th Edition, 2012."}]
[null,"4.",{"$f":"IF(ISTEXT(Syllabus!E23), Syllabus!E23, \"\")","v":"An Introduction to Digital and Analog Communications by Simon Haykin and Michael Moher, Wiley, 2nd Edition, 2006."}]
[null,"5.",{"$f":"IF(ISTEXT(Syllabus!E24), Syllabus!E24, \"\")","v":"Analog and Digital Communication Systems by Martin S. Roden, Discovery Press, 5th Edition, 2003."}]
[null,"6.",{"$f":"IF(ISTEXT(Syllabus!E25), Syllabus!E25, \"\")","v":"Digital Communication Systems by Simon Haykin, Wiley, 1st Edition, 2013."}]
[null,"7.",{"$f":"IF(ISTEXT(Syllabus!E26), Syllabus!E26, \"\")","v":"Contemporary Communication Systems using MATLAB by John G. Proakis, Masoud Salehi and Gerhard Bauch, Thomson-Engineering, 3rd Edition, 2012."}]
[null,"8.",{"$f":"IF(ISTEXT(Syllabus!E27), Syllabus!E27, \"\")","v":""}]
[null,"1.",null,null,null,null,null,null,null,null,null,null,"موصى به للقراءة"]
[null,"2."]
[null,"3."]
[null,"4."]
[null,"5."]
[null,"6."]
[null,"7."]
[null,"8."]
[null,"1.","See course website for links",null,null,null,null,null,null,null,null,null,"مادة إلكترونية"]
[null,"2."]
[null,"3."]
[null,"4."]
[null,"5."]
[null,"6."]
[null,"7."]
[null,"8."]
[null,"1.",null,null,null,null,null,null,null,null,null,null,"مواقع أخرى"]
[null,"2."]
[null,"3."]
[null,"4."]
[null,"5."]
[null,"6."]
[null,"7."]
[null,"8."]
[]
[null,"خطة تقييم المقرر"]
[null,"المخرجات",null,null,null,null,null,null,null,"الدرجة","أدوات التقييم"]
[null,"C4","C3","C2","C1","S3","S2","S1","K1"]
[null,{"$f":"IF(isStrInRangeMatchesStrInRange(\"1\",$B$51:$C$70,B$109,$L$51:$L$70),\"þ\",\"¨\")","v":"¨"},{"$f":"IF(isStrInRangeMatchesStrInRange(\"1\",$B$51:$C$70,C$109,$L$51:$L$70),\"þ\",\"¨\")","v":"¨"},{"$f":"IF(isStrInRangeMatchesStrInRange(\"1\",$B$51:$C$70,D$109,$L$51:$L$70),\"þ\",\"¨\")","v":"¨"},{"$f":"IF(isStrInRangeMatchesStrInRange(\"1\",$B$51:$C$70,E$109,$L$51:$L$70),\"þ\",\"¨\")","v":"¨"},{"$f":"IF(isStrInRangeMatchesStrInRange(\"1\",$B$51:$C$70,F$109,$L$51:$L$70),\"þ\",\"¨\")","v":"¨"},{"$f":"IF(isStrInRangeMatchesStrInRange(\"1\",$B$51:$C$70,G$109,$L$51:$L$70),\"þ\",\"¨\")","v":"¨"},{"$f":"IF(isStrInRangeMatchesStrInRange(\"1\",$B$51:$C$70,H$109,$L$51:$L$70),\"þ\",\"¨\")","v":"¨"},{"$f":"IF(isStrInRangeMatchesStrInRange(\"1\",$B$51:$C$70,I$109,$L$51:$L$70),\"þ\",\"¨\")","v":"þ"},{"$f":"Syllabus!G74","v":0.2},null,null,{"$f":"Syllabus!D74","v":"First Exam"},".1"]
[null,{"$f":"IF(isStrInRangeMatchesStrInRange(\"2\",$B$51:$C$70,B$109,$L$51:$L$70),\"þ\",\"¨\")","v":"¨"},{"$f":"IF(isStrInRangeMatchesStrInRange(\"2\",$B$51:$C$70,C$109,$L$51:$L$70),\"þ\",\"¨\")","v":"¨"},{"$f":"IF(isStrInRangeMatchesStrInRange(\"2\",$B$51:$C$70,D$109,$L$51:$L$70),\"þ\",\"¨\")","v":"¨"},{"$f":"IF(isStrInRangeMatchesStrInRange(\"2\",$B$51:$C$70,E$109,$L$51:$L$70),\"þ\",\"¨\")","v":"¨"},{"$f":"IF(isStrInRangeMatchesStrInRange(\"2\",$B$51:$C$70,F$109,$L$51:$L$70),\"þ\",\"¨\")","v":"¨"},{"$f":"IF(isStrInRangeMatchesStrInRange(\"2\",$B$51:$C$70,G$109,$L$51:$L$70),\"þ\",\"¨\")","v":"¨"},{"$f":"IF(isStrInRangeMatchesStrInRange(\"2\",$B$51:$C$70,H$109,$L$51:$L$70),\"þ\",\"¨\")","v":"¨"},{"$f":"IF(isStrInRangeMatchesStrInRange(\"2\",$B$51:$C$70,I$109,$L$51:$L$70),\"þ\",\"¨\")","v":"þ"},{"$f":"Syllabus!G75","v":0.3},null,null,{"$f":"Syllabus!D75","v":"Midterm Exam"},".2"]
[null,{"$f":"IF(isStrInRangeMatchesStrInRange(\"3\",$B$51:$C$70,B$109,$L$51:$L$70),\"þ\",\"¨\")","v":"¨"},{"$f":"IF(isStrInRangeMatchesStrInRange(\"3\",$B$51:$C$70,C$109,$L$51:$L$70),\"þ\",\"¨\")","v":"¨"},{"$f":"IF(isStrInRangeMatchesStrInRange(\"3\",$B$51:$C$70,D$109,$L$51:$L$70),\"þ\",\"¨\")","v":"¨"},{"$f":"IF(isStrInRangeMatchesStrInRange(\"3\",$B$51:$C$70,E$109,$L$51:$L$70),\"þ\",\"¨\")","v":"¨"},{"$f":"IF(isStrInRangeMatchesStrInRange(\"3\",$B$51:$C$70,F$109,$L$51:$L$70),\"þ\",\"¨\")","v":"¨"},{"$f":"IF(isStrInRangeMatchesStrInRange(\"3\",$B$51:$C$70,G$109,$L$51:$L$70),\"þ\",\"¨\")","v":"¨"},{"$f":"IF(isStrInRangeMatchesStrInRange(\"3\",$B$51:$C$70,H$109,$L$51:$L$70),\"þ\",\"¨\")","v":"¨"},{"$f":"IF(isStrInRangeMatchesStrInRange(\"3\",$B$51:$C$70,I$109,$L$51:$L$70),\"þ\",\"¨\")","v":"þ"},{"$f":"Syllabus!G76","v":0.5},null,null,{"$f":"Syllabus!D76","v":"Final Exam"},".3"]
[null,{"$f":"IF(isStrInRangeMatchesStrInRange(\"4\",$B$51:$C$70,B$109,$L$51:$L$70),\"þ\",\"¨\")","v":"¨"},{"$f":"IF(isStrInRangeMatchesStrInRange(\"4\",$B$51:$C$70,C$109,$L$51:$L$70),\"þ\",\"¨\")","v":"¨"},{"$f":"IF(isStrInRangeMatchesStrInRange(\"4\",$B$51:$C$70,D$109,$L$51:$L$70),\"þ\",\"¨\")","v":"¨"},{"$f":"IF(isStrInRangeMatchesStrInRange(\"4\",$B$51:$C$70,E$109,$L$51:$L$70),\"þ\",\"¨\")","v":"¨"},{"$f":"IF(isStrInRangeMatchesStrInRange(\"4\",$B$51:$C$70,F$109,$L$51:$L$70),\"þ\",\"¨\")","v":"¨"},{"$f":"IF(isStrInRangeMatchesStrInRange(\"4\",$B$51:$C$70,G$109,$L$51:$L$70),\"þ\",\"¨\")","v":"¨"},{"$f":"IF(isStrInRangeMatchesStrInRange(\"4\",$B$51:$C$70,H$109,$L$51:$L$70),\"þ\",\"¨\")","v":"¨"},{"$f":"IF(isStrInRangeMatchesStrInRange(\"4\",$B$51:$C$70,I$109,$L$51:$L$70),\"þ\",\"¨\")","v":"¨"},{"$f":"Syllabus!G77","v":0},null,null,{"$f":"Syllabus!D77","v":"Quizzes"},".4"]
[null,{"$f":"IF(isStrInRangeMatchesStrInRange(\"5\",$B$51:$C$70,B$109,$L$51:$L$70),\"þ\",\"¨\")","v":"¨"},{"$f":"IF(isStrInRangeMatchesStrInRange(\"5\",$B$51:$C$70,C$109,$L$51:$L$70),\"þ\",\"¨\")","v":"¨"},{"$f":"IF(isStrInRangeMatchesStrInRange(\"5\",$B$51:$C$70,D$109,$L$51:$L$70),\"þ\",\"¨\")","v":"¨"},{"$f":"IF(isStrInRangeMatchesStrInRange(\"5\",$B$51:$C$70,E$109,$L$51:$L$70),\"þ\",\"¨\")","v":"¨"},{"$f":"IF(isStrInRangeMatchesStrInRange(\"5\",$B$51:$C$70,F$109,$L$51:$L$70),\"þ\",\"¨\")","v":"¨"},{"$f":"IF(isStrInRangeMatchesStrInRange(\"5\",$B$51:$C$70,G$109,$L$51:$L$70),\"þ\",\"¨\")","v":"¨"},{"$f":"IF(isStrInRangeMatchesStrInRange(\"5\",$B$51:$C$70,H$109,$L$51:$L$70),\"þ\",\"¨\")","v":"¨"},{"$f":"IF(isStrInRangeMatchesStrInRange(\"5\",$B$51:$C$70,I$109,$L$51:$L$70),\"þ\",\"¨\")","v":"¨"},{"$f":"Syllabus!K74","v":0},null,null,{"$f":"Syllabus!I74","v":"Assignments"},".5"]
[null,{"$f":"IF(isStrInRangeMatchesStrInRange(\"6\",$B$51:$C$70,B$109,$L$51:$L$70),\"þ\",\"¨\")","v":"¨"},{"$f":"IF(isStrInRangeMatchesStrInRange(\"6\",$B$51:$C$70,C$109,$L$51:$L$70),\"þ\",\"¨\")","v":"¨"},{"$f":"IF(isStrInRangeMatchesStrInRange(\"6\",$B$51:$C$70,D$109,$L$51:$L$70),\"þ\",\"¨\")","v":"¨"},{"$f":"IF(isStrInRangeMatchesStrInRange(\"6\",$B$51:$C$70,E$109,$L$51:$L$70),\"þ\",\"¨\")","v":"¨"},{"$f":"IF(isStrInRangeMatchesStrInRange(\"6\",$B$51:$C$70,F$109,$L$51:$L$70),\"þ\",\"¨\")","v":"¨"},{"$f":"IF(isStrInRangeMatchesStrInRange(\"6\",$B$51:$C$70,G$109,$L$51:$L$70),\"þ\",\"¨\")","v":"¨"},{"$f":"IF(isStrInRangeMatchesStrInRange(\"6\",$B$51:$C$70,H$109,$L$51:$L$70),\"þ\",\"¨\")","v":"¨"},{"$f":"IF(isStrInRangeMatchesStrInRange(\"6\",$B$51:$C$70,I$109,$L$51:$L$70),\"þ\",\"¨\")","v":"¨"},{"$f":"Syllabus!K75","v":0},null,null,{"$f":"Syllabus!I75","v":"Projects"},".6"]
[null,{"$f":"IF(isStrInRangeMatchesStrInRange(\"7\",$B$51:$C$70,B$109,$L$51:$L$70),\"þ\",\"¨\")","v":"¨"},{"$f":"IF(isStrInRangeMatchesStrInRange(\"7\",$B$51:$C$70,C$109,$L$51:$L$70),\"þ\",\"¨\")","v":"¨"},{"$f":"IF(isStrInRangeMatchesStrInRange(\"7\",$B$51:$C$70,D$109,$L$51:$L$70),\"þ\",\"¨\")","v":"¨"},{"$f":"IF(isStrInRangeMatchesStrInRange(\"7\",$B$51:$C$70,E$109,$L$51:$L$70),\"þ\",\"¨\")","v":"¨"},{"$f":"IF(isStrInRangeMatchesStrInRange(\"7\",$B$51:$C$70,F$109,$L$51:$L$70),\"þ\",\"¨\")","v":"¨"},{"$f":"IF(isStrInRangeMatchesStrInRange(\"7\",$B$51:$C$70,G$109,$L$51:$L$70),\"þ\",\"¨\")","v":"¨"},{"$f":"IF(isStrInRangeMatchesStrInRange(\"7\",$B$51:$C$70,H$109,$L$51:$L$70),\"þ\",\"¨\")","v":"¨"},{"$f":"IF(isStrInRangeMatchesStrInRange(\"7\",$B$51:$C$70,I$109,$L$51:$L$70),\"þ\",\"¨\")","v":"¨"},{"$f":"Syllabus!K76","v":0},null,null,{"$f":"Syllabus!I76","v":"Lab Reports"},".7"]
[null,{"$f":"IF(isStrInRangeMatchesStrInRange(\"8\",$B$51:$C$70,B$109,$L$51:$L$70),\"þ\",\"¨\")","v":"¨"},{"$f":"IF(isStrInRangeMatchesStrInRange(\"8\",$B$51:$C$70,C$109,$L$51:$L$70),\"þ\",\"¨\")","v":"¨"},{"$f":"IF(isStrInRangeMatchesStrInRange(\"8\",$B$51:$C$70,D$109,$L$51:$L$70),\"þ\",\"¨\")","v":"¨"},{"$f":"IF(isStrInRangeMatchesStrInRange(\"8\",$B$51:$C$70,E$109,$L$51:$L$70),\"þ\",\"¨\")","v":"¨"},{"$f":"IF(isStrInRangeMatchesStrInRange(\"8\",$B$51:$C$70,F$109,$L$51:$L$70),\"þ\",\"¨\")","v":"¨"},{"$f":"IF(isStrInRangeMatchesStrInRange(\"8\",$B$51:$C$70,G$109,$L$51:$L$70),\"þ\",\"¨\")","v":"¨"},{"$f":"IF(isStrInRangeMatchesStrInRange(\"8\",$B$51:$C$70,H$109,$L$51:$L$70),\"þ\",\"¨\")","v":"¨"},{"$f":"IF(isStrInRangeMatchesStrInRange(\"8\",$B$51:$C$70,I$109,$L$51:$L$70),\"þ\",\"¨\")","v":"¨"},{"$f":"Syllabus!K77","v":0},null,null,{"$f":"Syllabus!I77","v":"Presentation"},".8"]
[null,null,null,null,null,null,null,null,null,{"$f":"Syllabus!K78","v":1},null,null,null,"المجموع"]

{"sheet":"N4","index":9,"n_rows":49,"n_cols":14,"rows_kept":49,"cut":false,"hidden":false,"merged":[[1,1,1,13],[6,1,6,11],[9,1,9,3],[10,1,10,3],[7,1,7,11],[9,4,10,6],[10,7,10,11],[9,7,9,11],[8,7,8,11],[8,1,8,3],[11,1,11,3],[11,10,11,11],[11,7,11,8],[15,2,15,11],[15,12,15,13],[14,1,14,11],[13,1,13,11],[14,12,14,13],[12,7,12,8],[12,1,12,3],[12,10,12,11],[16,2,16,11],[16,12,16,13],[17,2,17,11],[17,12,17,13],[21,2,21,11],[21,12,21,13],[22,2,22,11],[22,12,22,13],[23,2,23,11],[23,12,23,13],[18,2,18,11],[18,12,18,13],[19,2,19,11],[19,12,19,13],[20,2,20,11],[20,12,20,13],[27,2,27,11],[27,12,27,13],[28,2,28,11],[28,12,28,13],[29,2,29,11],[29,12,29,13],[24,2,24,11],[24,12,24,13],[25,2,25,11],[25,12,25,13],[26,2,26,11],[26,12,26,13]]}
[]
[null,"نموذج رقم (4): تحديد مستوى مقرر دراسي في مستويات الإطار الوطني الأردني للمؤهلات"]
[]
[null,null,null,null,null,null,null,null,null,null,null,null,null,"ملاحظة: يتم تعبئة هذا النموذج لكل مقرر دراسي في الخطة الدراسية للمؤهل"]
[]
[null,null,null,null,null,null,null,null,null,null,null,null,null,"معلومات المقرر الدراسي المراد تحديد مستواه في الإطار الوطني الأردني للمؤهلات"]
[null,{"$f":"Cover!B3","v":"School of Engineering"},null,null,null,null,null,null,null,null,null,null,null,"الكلية"]
[null,{"$f":"Cover!B4","v":"Electrical Engineering Department"},null,null,null,null,null,null,null,null,null,null,null,"القسم"]
[null,{"$f":"Cover!$P$24","v":164},null,null,null,null,"الساعات في الإطار",{"$f":"SO!G2","v":7},null,null,null,null,null,"المستوى في الإطار"]
[null,{"$f":"IF(ISTEXT(Syllabus!E15),Syllabus!E15,\"\")","v":"0963321"},null,null,"رمز المتطلب السابق",null,null,{"$f":"Cover!F17","v":"0953421"},null,null,null,null,null,"رمز المقرر"]
[null,{"$f":"IF(ISTEXT(Syllabus!E16),\"& \" & Syllabus!E16,\"\")","v":""},null,null,null,null,null,{"$f":"Cover!F18","v":"Communications (I)"},null,null,null,null,null,"واسمه"]
[null,{"$f":"Cover!O21","v":0},null,null,null,null,"عملي",{"$f":"Cover!O20","v":3},null,"نظري",{"$f":"Cover!F19","v":"3"},null,null,"الساعات المعتمدة"]
[null,{"$f":"Syllabus!D29","v":"On Campus"},null,null,null,null,"الحضور",{"$f":"Syllabus!D79","v":"Feb 2024"},null,"آخر تعديل",{"$f":"Cover!O24","v":"Sep 2022"},null,null,"تاريخ إعداد المقرر"]
[null,{"$f":"Syllabus!D30","v":"The overall objective is to introduce the student to the basics of communications theory. This course emphasizes:\n• Analog modulation and demodulation techniques.\n• Performance evaluation of communication systems in the presence of noise.\n• Modern trends in communication systems."},null,null,null,null,null,null,null,null,null,null,null,"أهداف المقرر"]
[null,"مخرجات التعلم CILOs",null,null,null,null,null,null,null,null,null,null,"رمز المخرج"]
[null,"1.",{"$f":"IF(ISTEXT(Syllabus!C34), Syllabus!C34, \"\")","v":"Understand the theory behind amplitude, frequency and phase modulation techniques."},null,null,null,null,null,null,null,null,null,{"$f":"'N2'!M23","v":"[K1]"}]
[null,"2.",{"$f":"IF(ISTEXT(Syllabus!C35), Syllabus!C35, \"\")","v":"Become familiar with the performance measures used in conjunction with communication systems including required channel bandwidth and signal-to-noise ratio (SNR)."},null,null,null,null,null,null,null,null,null,{"$f":"'N2'!M24","v":"[K1]"}]
[null,"3.",{"$f":"IF(ISTEXT(Syllabus!C36), Syllabus!C36, \"\")","v":"Be able to identify the different parts of AM and FM transmitters and receivers."},null,null,null,null,null,null,null,null,null,{"$f":"'N2'!M25","v":"[K1]"}]
[null,"4.",{"$f":"IF(ISTEXT(Syllabus!C37), Syllabus!C37, \"\")","v":"Learn how FDM and TDM multiplexing systems work."},null,null,null,null,null,null,null,null,null,{"$f":"'N2'!M26","v":"[K1]"}]
[null,"5.",{"$f":"IF(ISTEXT(Syllabus!C38), Syllabus!C38, \"\")","v":"Become familiar with digital modulation techniques: ASK, FSK, PSK & QPSK."},null,null,null,null,null,null,null,null,null,{"$f":"'N2'!M27","v":"[K1]"}]
[null,"6.",{"$f":"IF(ISTEXT(Syllabus!C39), Syllabus!C39, \"\")","v":"Be able to identify design choices in contemporary communication systems, such as: satellite systems, landline and cellular telephony, wireless networks, television and radio broadcasting systems."},null,null,null,null,null,null,null,null,null,{"$f":"'N2'!M28","v":"[K1]"}]
[null,"7.",{"$f":"IF(ISTEXT(Syllabus!C40), Syllabus!C40, \"\")","v":""},null,null,null,null,null,null,null,null,null,{"$f":"'N2'!M29","v":""}]
[null,"8.",{"$f":"IF(ISTEXT(Syllabus!C41), Syllabus!C41, \"\")","v":""},null,null,null,null,null,null,null,null,null,{"$f":"'N2'!M30","v":""}]
[null,"9.",{"$f":"IF(ISTEXT(Syllabus!C42), Syllabus!C42, \"\")","v":""},null,null,null,null,null,null,null,null,null,{"$f":"'N2'!M31","v":""}]
[null,"10.",{"$f":"IF(ISTEXT(Syllabus!C43), Syllabus!C43, \"\")","v":""},null,null,null,null,null,null,null,null,null,{"$f":"'N2'!M32","v":""}]
[null,"11.",{"$f":"IF(ISTEXT(Syllabus!C44), Syllabus!C44, \"\")","v":""},null,null,null,null,null,null,null,null,null,{"$f":"'N2'!M33","v":""}]
[null,"12.",{"$f":"IF(ISTEXT(Syllabus!C45), Syllabus!C45, \"\")","v":""},null,null,null,null,null,null,null,null,null,{"$f":"'N2'!M34","v":""}]
[null,"13.",{"$f":"IF(ISTEXT(Syllabus!C46), Syllabus!C46, \"\")","v":""},null,null,null,null,null,null,null,null,null,{"$f":"'N2'!M35","v":""}]
[null,"14.",{"$f":"IF(ISTEXT(Syllabus!C47), Syllabus!C47, \"\")","v":""},null,null,null,null,null,null,null,null,null,{"$f":"'N2'!M36","v":""}]
[null,"15.",{"$f":"IF(ISTEXT(Syllabus!C48), Syllabus!C48, \"\")","v":""},null,null,null,null,null,null,null,null,null,{"$f":"'N2'!M37","v":""}]
[]
[null,null,null,null,null,null,null,null,null,null,null,null,null,"معلومات المقرر الدراسي المراد تحديد مستواه في الإطار الوطني الأردني للمؤهلات"]
[null,null,null,null,"الساعات الافتراضية",null,null,null,"عدد التكرار في الفصل الدراسي",null,"المدة في الأسبوع",null,null,"نشاطات التعليم"]
[null,null,null,{"$f":"IF(J34*I34=0,\"\",ROUND(J34*I34,1))","v":40},null,null,null,null,13.333,3,null,null,null,"المحاضرات والندوات"]
[null,null,null,{"$f":"IF(J35*I35=0,\"\",ROUND(J35*I35,1))","v":""},null,null,null,null,null,null,null,null,null,"حصص داعمة"]
[null,null,null,"",null,null,null,null,null,null,null,null,null,"المختبر أو العملي"]
[null,null,null,null,null,null,null,null,null,null,null,null,null,"نشاطات تحتاج للإشراف والتقييم"]
[null,null,null,{"$f":"IF(J38*I38=0,\"\",ROUND(J38*I38,1))","v":1},null,null,null,null,1,1,null,null,null,"الامتحان الأول (إذا توفر)"]
[null,null,null,{"$f":"IF(J39*I39=0,\"\",ROUND(J39*I39,1))","v":1},null,null,null,null,1,1,null,null,null,"امتحان منتصف الفصل"]
[null,null,null,2,null,null,null,null,1,2,null,null,null,"الامتحان النهائي"]
[null,null,null,"",null,null,null,null,null,null,null,null,null,"امتحانات قصيرة"]
[null,null,null,null,null,null,null,null,null,null,null,null,null,"نشاطات التعليم المستقل"]
[null,null,null,{"$f":"IF(J43*I43=0,\"\",ROUND(J43*I43,1))","v":""},null,null,null,null,null,null,null,null,null,"الوظائف / الواجبات"]
[null,null,null,{"$f":"IF(J44*I44=0,\"\",ROUND(J44*I44,1))","v":""},null,null,null,null,null,null,null,null,null,"مشاريع / حالات دراسة"]
[null,null,null,"",null,null,null,null,null,null,null,null,null,"تقارير مختبرات ووظائف"]
[null,null,null,"",null,null,null,null,null,null,null,null,null,"عروض تقديمية / أنشطة"]
[null,null,null,7,null,null,null,null,7,1,null,null,null,"استخدام مواقع إلكترونية"]
[null,null,null,80,null,null,null,null,13.333,6,null,null,null,"قراءة من مصادر تعليمية"]
[null,null,null,{"$f":"SUM(D34:D36,D38:D41,D43:D48)","v":131},null,null,null,null,null,null,null,null,null,"مجموع الساعات الافتراضية "]

{"sheet":"N47","index":10,"n_rows":11,"n_cols":15,"rows_kept":11,"cut":false,"hidden":false,"merged":[[6,2,6,6],[7,2,7,6],[8,2,8,6],[9,2,9,6],[10,2,10,6],[6,8,6,12],[7,8,7,12],[8,8,8,12],[9,8,9,12],[10,8,10,12],[2,2,2,6],[2,8,2,12],[3,8,3,12],[4,8,4,12],[5,8,5,12],[3,2,3,6],[4,2,4,6],[5,2,5,6]]}
[]
[null,null,null,null,null,null,null,null,null,null,null,null,null,null,"تحديد مستوى المقرر في الإطار الوطني الأردني للمؤهلات"]
[null,"المستوى","الأسباب والمبررات في تحديد مستوى المقرر الدراسي في الإطار الوطني للمؤهلات",null,null,null,null,"التقييمات تكويني/ تجميعي","الوصف",null,null,null,null,"رموز المخرجات","واصفات الإطار"]
[null,7,"المقرر الدراسي ضمن المقررات المطلوبة لنيل شهادة البكالوريوس في تخصص الهندسة الكهربائية، ويحتوي المقرر على نظريات ومفاهيم ومبادئ أساسية لهذا التخصص ذات طابع متقدم",null,null,null,null,"تجميعي","فهم منهجي للنظريات والمفاهيم والمبادئ والتعميمات المتعلقة بمجال التعلّم، والتي بعضها على حدود أ حدث ما توصل له العلم",null,null,null,null,"K1","المعرفة"]
[null,7,"المقرر الدراسي ضمن المقررات المطلوبة لنيل شهادة البكالوريوس في تخصص الهندسة الكهربائية، ويساعد المقرر على إتقان مهارات وأدوات لحل المشاكل المعقدة ضمن هذا التخصص",null,null,null,null,"تجميعي","إتقان المهارات والأدوات المطلوبة لحل المشاكل المعقدة في مجال متخصص من الدراسة",null,null,null,null,"S1","المهارات"]
[null,7,"المقرر الدراسي ضمن المقررات المطلوبة لنيل شهادة البكالوريوس في تخصص الهندسة الكهربائية، ويقدم المقرر مهارات تخصصية ومفاهيمية ضمن التخصص",null,null,null,null,"تجميعي","إظهار المهارات التخصصية والمفاهيمية في مجال الدراسة",null,null,null,null,"S2","المهارات"]
[null,7,"المقرر الدراسي ضمن المقررات المطلوبة لنيل شهادة البكالوريوس في تخصص الهندسة الكهربائية، ويساعد المقرر على تطوير مهارات التقييم في وظائف التخطيط والتصميم ضمن التخصص",null,null,null,null,"تجميعي","ممارسة التقييم في وظائف التخطيط والتصميم والتقنية و/أو الوظائف الإشرافية المتعلقة بالمنتجات أو الخدمات أو العمليات",null,null,null,null,"S3","المهارات"]
[null,7,"المقرر الدراسي ضمن المقررات المطلوبة لنيل شهادة البكالوريوس في تخصص الهندسة الكهربائية، ويساعد المقرر على تطوير كفايات إدارة الأنشطة والمشاريع ضمن التخصص",null,null,null,null,"تجميعي","إدارة الأنشطة والمشاريع",null,null,null,null,"C1","الكفايات"]
[null,7,"المقرر الدراسي ضمن المقررات المطلوبة لنيل شهادة البكالوريوس في تخصص الهندسة الكهربائية، ويساعد المقرر على تطوير كفايات تحمل المسؤولية عن اتخاذ القرارات ضمن التخصص",null,null,null,null,"تجميعي","تحمل المسؤولية عن اتخاذ القرارات في سياقات العمل أو الدراسة",null,null,null,null,"C2","الكفايات"]
[null,7,"المقرر الدراسي ضمن المقررات المطلوبة لنيل شهادة البكالوريوس في تخصص الهندسة الكهربائية، ويساعد المقرر على تطوير كفايات العمل بفعالية وتحمل مسؤولية عمل المجموعات ضمن التخصص",null,null,null,null,"تجميعي","تحمل مسؤولية عمل المجموعات والعمل بفعالية بتوجيه من الأقران",null,null,null,null,"C3","الكفايات"]
[null,7,"المقرر الدراسي ضمن المقررات المطلوبة لنيل شهادة البكالوريوس في تخصص الهندسة الكهربائية، ويساعد المقرر على تطوير كفايات نقل وتطبيق المهارات في سياقات مختلفة ضمن التخصص",null,null,null,null,"تجميعي","نقل وتطبيق المهارات التشخيصية والإبداعية في مجموعة من السياقات",null,null,null,null,"C4","الكفايات"]

{"sheet":"N49","index":11,"n_rows":15,"n_cols":15,"rows_kept":15,"cut":false,"hidden":false,"merged":[[10,2,10,6],[10,8,10,12],[13,2,13,6],[13,8,13,12],[14,2,14,6],[14,8,14,12],[11,8,11,12],[12,8,12,12],[11,2,11,6],[12,2,12,6],[7,2,7,6],[7,8,7,12],[8,2,8,6],[8,8,8,12],[9,2,9,6],[9,8,9,12],[2,2,2,6],[2,8,2,12],[3,2,3,6],[3,8,3,12],[6,2,6,6],[6,8,6,12],[4,8,4,12],[5,8,5,12],[4,2,4,6],[5,2,5,6]]}
[]
[null,null,null,null,null,null,null,null,null,null,null,null,null,null,"تحديد مستوى المقرر في الإطار الوطني الأردني للمؤهلات"]
[null,"المستوى","الأسباب والمبررات في تحديد مستوى المقرر الدراسي في الإطار الوطني للمؤهلات",null,null,null,null,"التقييمات تكويني/ تجميعي","الوصف",null,null,null,null,"رموز المخرجات","واصفات الإطار"]
[null,9,"المقرر الدراسي ضمن المقررات المطلوبة لنيل شهادة الماجستير في التخصص، ويحتوي المقرر على معرفة ومفاهيم متخصصة على حدود أحدث ما توصل له العلم",null,null,null,null,"تجميعي","المعرفة المتخصصة على حدود أحدث ما توصل له العلم في مجال الدراسة",null,null,null,null,"K1","المعرفة"]
[null,9,"المقرر الدراسي ضمن المقررات المطلوبة لنيل شهادة الماجستير في التخصص، ويبني المقرر القدرة على التفكير النقدي لقضايا المعرفة في مجال التعلّم",null,null,null,null,"تجميعي","القدرة على التفكير النقدي لقضايا المعرفة في مجال التعلّم وعلى الواجهة بين مختلف المجالات",null,null,null,null,"K2","المعرفة"]
[null,9,"المقرر الدراسي ضمن المقررات المطلوبة لنيل شهادة الماجستير في التخصص، ويبني المقرر المعرفة الكافية باستراتيجيات الإبداع",null,null,null,null,"تجميعي","المعرفة الكافية باستراتيجيات الإبداع",null,null,null,null,"K3","المعرفة"]
[null,9,"المقرر الدراسي ضمن المقررات المطلوبة لنيل شهادة الماجستير في التخصص، ويبني المقرر القدرة على تطبيق المهارات المتخصصة في حل المشاكل",null,null,null,null,"تجميعي","إظهار القدرة على تطبيق المهارات المتخصصة في حل المشاكل المطلوبة في البحث العلمي",null,null,null,null,"S1","المهارات"]
[null,9,"المقرر الدراسي ضمن المقررات المطلوبة لنيل شهادة الماجستير في التخصص، ويبني المقرر القدرة على ابتكار مهارات جديدة على مستوىً عالٍ بما في ذلك المهارات التكنولوجية الجديدة",null,null,null,null,"تجميعي","القدرة على ابتكار مهارات جديدة، وأدوات، وإجراءات على مستوىً عالٍ بما في ذلك المهارات التكنولوجية الجديدة والناشئة",null,null,null,null,"S2","المهارات"]
[null,9,"المقرر الدراسي ضمن المقررات المطلوبة لنيل شهادة الماجستير في التخصص، ويبني المقرر القدرة على دمج المعرفة من مختلف مجالات التعلّم",null,null,null,null,"تجميعي","القدرة على دمج المعرفة من مختلف مجالات التعلّم",null,null,null,null,"S3","المهارات"]
[null,9,"المقرر الدراسي ضمن المقررات المطلوبة لنيل شهادة الماجستير في التخصص، ويبني المقرر القدرة على التعامل مع التعقيد في المسائل العلمية وإدارتها والمبادرة في حلها",null,null,null,null,"تجميعي","التعامل مع التعقيد في المسائل العلمية وإدارتها والمبادرة في حلها. صياغة الأحكام، وتحويل الممارسات الجيدة",null,null,null,null,"C1","الكفايات"]
[null,9,"المقرر الدراسي ضمن المقررات المطلوبة لنيل شهادة الماجستير في التخصص، ويبني المقرر القدرة على إدارة سياقات الدراسة المبهمة من خلال استراتيجيات جديدة",null,null,null,null,"تجميعي","إدارة سياقات الدراسة المبهمة والتي تتطلب نهجا استراتيجيا جديدا",null,null,null,null,"C2","الكفايات"]
[null,9,"المقرر الدراسي ضمن المقررات المطلوبة لنيل شهادة الماجستير في التخصص، ويبني المقرر القدرة على تقييم الذات وتحمل مسؤولية التعلّم الذاتي",null,null,null,null,"تجميعي","تقييم الذات وتحمل مسؤولية التعلّم الذاتي",null,null,null,null,"C3","الكفايات"]
[null,9,"المقرر الدراسي ضمن المقررات المطلوبة لنيل شهادة الماجستير في التخصص، ويبني المقرر القدرة على تحمل مسؤولية عمل الفريق",null,null,null,null,"تجميعي","تحمل مسؤولية عمل الفريق",null,null,null,null,"C4","الكفايات"]
[null,9,"المقرر الدراسي ضمن المقررات المطلوبة لنيل شهادة الماجستير في التخصص، ويبني المقرر القدرة على المساهمة في المعرفة المهنية",null,null,null,null,"تجميعي","المساهمة في المعرفة المهنية",null,null,null,null,"C5","الكفايات"]
[null,9,"المقرر الدراسي ضمن المقررات المطلوبة لنيل شهادة الماجستير في التخصص، ويبني المقرر القدرة على مراجعة أ داء الفريق",null,null,null,null,"تجميعي","القدرة على مراجعة أ داء الفريق",null,null,null,null,"C6","الكفايات"]

{"sheet":"About","index":12,"n_rows":22,"n_cols":2,"rows_kept":22,"cut":false,"hidden":false,"merged":[]}
[null,"ABET Course Portfolio V2.4"]
[]
[null,"© Copyright 2018-2026"]
[null,"Prof. Mohammed Hawa"]
[]
[null,"Electrical Engineering Department"]
[null,"The University of Jordan"]
[null,"Amman, 11942, JORDAN"]
[null,"hawa@ju.edu.jo"]
[null,"http://hawa.work"]
[]
[]
[null,"TERMS OF USE:"]
[null,"Permission is granted to use this program and redistribute"]
[null,"it provided that credit is given to the original work"]
[null,"with a link back to this program."]
[]
[null,"This program is distributed in the hope that it will be useful,"]
[null,"but WITHOUT ANY WARRANTY; without even the implied warranty of"]
[null,"MERCHANTABILITY or FITNESS FOR A PARTICULAR PURPOSE."]
[]
[null,"PLEASE DO NOT REMOVE THIS COPYRIGHT BLOCK."]